{"text_format":"1","workbook":"xlsx","n_sheets":8,"sheets":["Blatt 1","Blatt 2","Blatt 3","Blatt 4","Blatt 5","Blatt 6","Zusammenfassung","Tabelle2"],"not_rendered":{"charts":0,"images":0,"macros":1,"external_links":0,"defined_names":7,"comments":7,"pivot_tables":0},"unopened":[],"bounds":{"document_bytes":16777216,"sheet_cells":100000,"rows_first":2000,"rows_last":500,"rows_between":2000,"halvings":0,"cell_chars":16384,"cell_head_chars":4096},"cells_cut":0,"cells_raw":0,"read":"whole","date_system":"1900"}

{"sheet":"Blatt 1","index":0,"n_rows":73,"n_cols":33,"rows_kept":73,"cut":false,"hidden":false,"merged":[[54,1,54,16],[54,17,54,18],[21,23,21,26],[33,23,33,26],[24,23,24,26],[17,28,17,29],[18,28,18,29],[47,1,47,17],[47,19,47,22],[47,23,47,26],[37,23,37,26],[44,19,44,22],[44,23,44,26],[41,19,41,22],[20,19,20,22],[21,19,21,22],[22,19,22,22],[23,19,23,22],[21,1,22,18],[33,1,33,16],[33,17,33,18],[33,19,33,22],[34,19,34,22],[52,19,52,22],[45,23,45,26],[35,23,35,26],[36,19,36,22],[36,23,36,26],[45,1,46,18],[49,1,49,17],[35,1,37,18],[30,23,30,26],[34,23,34,26],[48,23,48,26],[41,23,41,26],[18,19,18,26],[38,1,39,18],[40,1,40,17],[6,2,6,26],[29,19,29,22],[29,23,29,26],[15,8,15,9],[22,23,22,26],[20,23,20,26],[23,23,23,26],[19,19,19,22],[30,19,30,22],[31,19,31,22],[32,19,32,22],[25,23,25,26],[26,23,26,26],[28,1,29,18],[27,19,27,22],[27,23,27,26],[0,0,0,2],[49,23,49,26],[53,19,53,22],[53,23,53,26],[38,23,38,26],[40,19,40,22],[40,23,40,26],[43,19,43,22],[43,23,43,26],[37,19,37,22],[51,1,52,18],[45,19,45,22],[3,0,3,26],[10,17,10,26],[9,15,9,16],[9,11,9,14],[9,17,9,26],[12,6,12,26],[42,23,42,26],[31,23,31,26],[32,23,32,26],[19,23,19,26],[17,19,17,26],[17,0,20,18],[71,1,71,6],[31,1,31,18],[38,19,38,22],[49,19,49,22],[42,1,43,18],[23,1,26,18],[35,19,35,22],[42,19,42,22],[54,19,54,22],[66,0,67,29],[58,1,58,29],[59,1,59,29],[60,1,60,29],[57,1,57,29],[61,1,62,29],[63,1,64,29],[54,23,54,26],[48,19,48,22],[24,19,24,22],[25,19,25,22],[26,19,26,22],[52,23,52,26],[50,19,50,22],[50,23,50,26]]}
["Anlage: ",null,null,"Berechnung der Umsatzerlöse aus bodengebundener Produktion"]
[null,null,null,"zum Antrag auf Gewährung von Zuwendungen zur Förderung der Diversifzierung"]
[]
[]
["Antragstellendes Unternehmen (Name, Vorname, ggf. Unternehmensbezeichnung)"]
[]
[null,null,"Der Unternehmer hat, außer der Bewirtschaftung des antragstellenden landwirtschaftlichen Unternehmens, keine weiteren Erlöse aus gewerblichen Nebenbetriebe, Gewerbebetrieb und/oder selbständiger Tätigkeit.1"]
[]
[]
[null,null,null,null,null,null,null,null,null,null,null,null,null,null,null,null,null,"Unternehmernummer Antragsteller",null,null,null,null,null,null,null,null,null,false]
[null,null,null,null,null,null,null,null,null,null,null,null,null,null,null,null,null,null,null,null,null,null,null,null,null,null,null,false]
[]
[]
[null,null,null,null,null,null,"(Name, Vorname)"]
[]
[null,null,null,null,null,null,null,"mit ",null,null,"% Anteil am antragstellendes Unternehmen"]
[]
["Der genannte antragstellende Einzelunternehmer / Gesellschafter\nhat folgende Umsatzerlöse aus dem antragstellenden Unternehmen:",null,null,null,null,null,null,null,null,null,null,null,null,null,null,null,null,null,null,"Wirtschaftsjahr (anteilig)",null,null,null,null,null,null,null,null,"Wirtschaftsjahr (100%)",null,{"$f":"IF(AND(AB10=TRUE,AB11=TRUE),\"bei Personenidentität Blatt 1 und Blatt 4 ausfüllen\",\"\")","v":""}]
[null,null,null,null,null,null,null,null,null,null,null,null,null,null,null,null,null,null,null,"EUR",null,null,null,null,null,null,null,null,{"$f":"T19","v":"EUR"},null,"Anteil am landwirtschaftlichen Unternehmen in %"]
[null,null,null,null,null,null,null,null,null,null,null,null,null,null,null,null,null,null,null,"Vorjahr",null,null,null,"akt. Jahr",null,null,null,null,{"$f":"T20","v":"Vorjahr"},{"$f":"X20","v":"akt. Jahr"},"Vorjahr","akt. Jahr"]
[null,null,null,null,null,null,null,null,null,null,null,null,null,null,null,null,null,null,null,{"$f":"AC21","v":0},null,null,null,{"$f":"AD21","v":0}]
["1.","Umsatzerlöse im Rahmen der einkommensteuerrechtlichen Einkunftsermittlung aus Land- und Forstwirtschaft"]
[]
["1.1","Umsatzerlöse aus pflanzlichen oder tierischen Erzeugnissen, die durch Bodenbewirtschaftung oder durch mit Bodenbewirtschaftung verbundene Tierhaltung gemäß Bewertungsgesetz gewonnen werden inkl. Bestandsveränderung"]
[]
[]
[null,null,null,null,null,null,null,null,null,null,null,null,null,null,null,null,null,null,null,{"$f":"ROUND((AC27*$AE$21/100),0)","v":0},null,null,null,{"$f":"ROUND((AD27*$AF$21/100),0)","v":0}]
[]
["1.2","Umsatzerlöse aus Direktvermarktung land- und forstwirtschaftlicher Erzeugnisse, sonstigen Bereichen (Urlaub auf dem Bauerhof, außerbetrieblicher Maschineneinsatz)2"]
[null,null,null,null,null,null,null,null,null,null,null,null,null,null,null,null,null,null,null,{"$f":"ROUND((AC30*$AE$21/100),0)","v":0},null,null,null,{"$f":"ROUND((AD30*$AF$21/100),0)","v":0}]
[]
["1.3","Zulagen und Zuschüsse (BMELV-Code 2449, etc.):",null,null,null,null,null,null,null,null,null,null,null,null,null,null,null,null,null,{"$f":"ROUND((AC32*$AE$21/100),0)","v":0},null,null,null,{"$f":"ROUND((AD32*$AF$21/100),0)","v":0}]
[]
[null,"Summe der Nr. 1 (= Summe 1)",null,null,null,null,null,null,null,null,null,null,null,null,null,null,null,null,null,{"$f":"IF(ISERROR(T27+T30+T32),0,(T27+T30+T32))","v":0},null,null,{"$f":"SUM(W27+#REF!+W32)","v":{"$error":"#REF!"}},{"$f":"IF(ISERROR(X27+X30+X32),0,(X27+X30+X32))","v":0},null,null,{"$f":"SUM(AA27+#REF!+AA32)","v":{"$error":"#REF!"}},null,{"$f":"IF(ISERROR(AC27+AC30+AC32),0,(AC27+AC30+AC32))","v":0},{"$f":"IF(ISERROR(AD27+AD30+AD32),0,(AD27+AD30+AD32))","v":0}]
[]
["2.","Umsatzerlöse im Rahmen der einkommensteuerrechtlichen Einkunfts-ermittlung aus Gewerbebetrieb und aus Land- und Forstwirtschaft ohne eigene Bodenbewirtschaftung"]
[]
[]
["2.1","gewerbliche Umsatzerlöse im landwirtschaftl. Betrieb aus Handel, Dienst-leistungen, Nebenbetriebe (z.B. Hofladen) (BMELV-Code 2337, etc.):"]
[]
[null,null,null,null,null,null,null,null,null,null,null,null,null,null,null,null,null,null,null,{"$f":"ROUND((AC41*$AE$21/100),0)","v":0},null,null,null,{"$f":"ROUND((AD41*$AF$21/100),0)","v":0}]
[]
["2.2","Pacht- und Mieterträge des antragstellenden Unternehmens (BMELV-Code 2325 + 2326, etc.)"]
[null,null,null,null,null,null,null,null,null,null,null,null,null,null,null,null,null,null,null,{"$f":"ROUND((AC44*$AE$21/100),0)","v":0},null,null,null,{"$f":"ROUND((AD44*$AF$21/100),0)","v":0}]
[]
["2.3","Umsatzerlöse aus folgenden beteiligten Gewerbebetrieb (z.B. Bauernhofcafe, Ferienwohnungen, Pferdepension, Photovoltaik, Biogas, Maschineneinsatz):",null,null,null,null,null,null,null,null,null,null,null,null,null,null,null,null,null,null,null,null,null,null,null,null,null,null,null,null,{"$f":"IF(AE50>100,\"Fehler!\",\"\")","v":""},{"$f":"IF(AF50>100,\"Fehler!\",\"\")","v":""}]
[null,null,null,null,null,null,null,null,null,null,null,null,null,null,null,null,null,null,null,null,null,null,null,null,null,null,null,null,null,null,"Anteil der Beteiligung in %"]
["a",null,null,null,null,null,null,null,null,null,null,null,null,null,null,null,null,null,null,null,null,null,null,null,null,null,null,null,null,null,{"$f":"T20","v":"Vorjahr"},{"$f":"X20","v":"akt. Jahr"},{"$f":"IF(AND(AB10=TRUE,AB11=TRUE),\"bei Personenidentität 2.3a nur auf Blatt 4 ausfüllen\",\"\")","v":""}]
[]
["b",null,null,null,null,null,null,null,null,null,null,null,null,null,null,null,null,null,null,{"$f":"ROUND((AC50*AE50/100),0)","v":0},null,null,null,{"$f":"ROUND((AD50*AF50/100),0)","v":0},null,null,null,null,null,null,null,null,{"$f":"IF(AND(AB10=TRUE,AB11=TRUE),\"bei Personenidentität 2.3b nur auf Blatt 1 ausfüllen\",\"\")","v":""}]
[]
["2.4","Umsatzerlöse aus selbständiger Arbeit (z.B. freiberufliche Tätigkeiten wie Referententätigkeit)"]
[null,null,null,null,null,null,null,null,null,null,null,null,null,null,null,null,null,null,null,{"$f":"ROUND((AC53),0)","v":0},null,null,null,{"$f":"ROUND((AD53),0)","v":0},null,null,null,null,null,null,null,null,{"$f":"IF(AND(AB10=TRUE,AB11=TRUE),\"bei Personenidentität 2.4 nur auf Blatt 1 ausfüllen\",\"\")","v":""}]
[]
[null,"Summe der Nr. 2 (= Summe 2)",null,null,null,null,null,null,null,null,null,null,null,null,null,null,null,null,null,{"$f":"IF(ISERROR(T41+T44+T48+T50+T53),0,(T41+T44+T48+T50+T53))","v":0},null,null,{"$f":"SUM(W48+#REF!+W53)","v":{"$error":"#REF!"}},{"$f":"IF(ISERROR(X41+X44+X48+X50+X53),0,(X41+X44+X48+X50+X53))","v":0},null,null,{"$f":"SUM(AA48+#REF!+AA53)","v":{"$error":"#REF!"}},null,{"$f":"IF(ISERROR(AC41+AC44+AC48+AC50+AC53),0,(AC41+AC44+AC48+AC50+AC53))","v":0},{"$f":"IF(ISERROR(AD41+AD44+AD48+AD50+AD53),0,(AD41+AD44+AD48+AD50+AD53))","v":0}]
[]
["Hinweise:"]
["1","Diese Anlage ist dann nicht auszufüllen."]
["2","Bei Nr. 1.2 darf nur eine Eintragung erfolgen, wenn diese Umsatzerlöse in die einkommenssteuerliche Einkunftsermittlung aus Land- und Forstwirtschaft des antragstellenden Unternehmens eingehen. Ansonsten sind diese Erlöse bei Nr. 2.2 zu erfassen."]
["·","Bei Gesellschaften (auch in Kooperationen) ist die Anlage für jeden Gesellschafter einzeln erforderlich. Auch für Gesellschafter deren Kapitalanteil kleiner als 5% ist, ist die Anlage erforderlich."]
["·","Bei Kooperationen sind alle Umsatzerlösen der beteiligten Kooperationspartner zu ermitteln."]
["·","Maßgeblich sind die im Durchschnitt der Berichtsjahre erzielten Umsatzerlöse. Es sind immer die kompletten Umsatzerlöse aus den Buchabschlüssen zu erfassen."]
[]
["·","Als Anlagen sind die der Berechnung zugrundeliegenden Jahresabschlüsse und die entsprechenden Gesellschaftsverträge/Kooperationsvereinbarungen vorzulegen."]
[]
[]
["Mir / uns ist bekannt, dass das ausgefüllte Formblatt als Nachweis zur Erfüllung der Zuwendungsberechtigung beim Direktor der Landwirtschaftskammer NRW als Landesbeauftragter - EU-Zahlstelle - vorgelegt wird."]
[]
[]
[]
[]
[]
[null,"Ort, Datum",null,null,null,null,null,null,null,null,null,null,null,null,null,null,null,"Name Buchstelle, Stempel, Unterschrift Bearbeiter / -in"]

{"sheet":"Blatt 2","index":1,"n_rows":73,"n_cols":33,"rows_kept":73,"cut":false,"hidden":false,"merged":[[17,28,17,29],[18,28,18,29],[15,28,15,29],[45,23,45,26],[47,1,47,17],[47,19,47,22],[47,23,47,26],[58,1,58,29],[50,19,50,22],[50,23,50,26],[51,1,52,18],[52,19,52,22],[52,23,52,26],[53,19,53,22],[53,23,53,26],[44,19,44,22],[44,23,44,26],[45,1,46,18],[45,19,45,22],[49,1,49,17],[49,19,49,22],[49,23,49,26],[48,19,48,22],[48,23,48,26],[71,1,71,6],[59,1,59,29],[60,1,60,29],[61,1,62,29],[63,1,64,29],[54,1,54,16],[54,17,54,18],[54,19,54,22],[54,23,54,26],[57,1,57,29],[66,0,67,29],[38,1,39,18],[38,19,38,22],[38,23,38,26],[40,1,40,17],[40,19,40,22],[40,23,40,26],[41,19,41,22],[41,23,41,26],[42,1,43,18],[42,19,42,22],[42,23,42,26],[43,19,43,22],[43,23,43,26],[32,19,32,22],[32,23,32,26],[33,1,33,16],[33,17,33,18],[33,19,33,22],[33,23,33,26],[34,19,34,22],[34,23,34,26],[35,1,37,18],[35,19,35,22],[35,23,35,26],[36,19,36,22],[36,23,36,26],[37,19,37,22],[37,23,37,26],[27,19,27,22],[27,23,27,26],[28,1,29,18],[29,19,29,22],[29,23,29,26],[30,19,30,22],[30,23,30,26],[31,1,31,18],[31,19,31,22],[31,23,31,26],[23,1,26,18],[23,19,23,22],[23,23,23,26],[24,19,24,22],[24,23,24,26],[25,19,25,22],[25,23,25,26],[26,19,26,22],[26,23,26,26],[17,0,20,18],[17,19,17,26],[18,19,18,26],[19,19,19,22],[19,23,19,26],[20,19,20,22],[20,23,20,26],[21,1,22,18],[21,19,21,22],[21,23,21,26],[22,19,22,22],[22,23,22,26],[0,0,0,2],[3,0,3,26],[6,2,6,26],[9,11,9,14],[9,15,9,16],[9,17,9,26],[10,17,10,26],[12,6,12,26],[15,8,15,9]]}
["Anlage: ",null,null,"Berechnung der Umsatzerlöse aus bodengebundener Produktion"]
[null,null,null,"zum Antrag auf Gewährung von Zuwendungen zur Förderung der Diversifzierung"]
[]
[{"$f":"'Blatt 1'!A4","v":0}]
["Antragstellendes Unternehmen (Name, Vorname, ggf. Unternehmensbezeichnung)"]
[]
[null,null,"Der Unternehmer hat, außer der Bewirtschaftung des antragstellenden landwirtschaftlichen Unternehmens, keine weiteren Erlöse aus gewerblichen Nebenbetriebe, Gewerbebetrieb und/oder selbständiger Tätigkeit.1"]
[]
[]
[null,null,null,null,null,null,null,null,null,null,null,null,null,null,null,null,null,"Unternehmernummer Antragsteller",null,null,null,null,null,null,null,null,null,false]
[null,null,null,null,null,null,null,null,null,null,null,null,null,null,null,null,null,{"$f":"'Blatt 1'!R11","v":0},null,null,null,null,null,null,null,null,null,false]
[]
[]
[null,null,null,null,null,null,"(Name, Vorname)"]
[]
[null,null,null,null,null,null,null,"mit ",null,null,"% Anteil am antragstellendes Unternehmen"]
[]
["Der genannte antragstellende Einzelunternehmer / Gesellschafter\nhat folgende Umsatzerlöse aus dem antragstellenden Unternehmen:",null,null,null,null,null,null,null,null,null,null,null,null,null,null,null,null,null,null,"Wirtschaftsjahr (anteilig)",null,null,null,null,null,null,null,null,"Wirtschaftsjahr (100%)",null,{"$f":"IF(AND(AB10=TRUE,AB11=TRUE),\"bei Personenidentität Blatt 2 und Blatt 5 ausfüllen\",\"\")","v":""}]
[null,null,null,null,null,null,null,null,null,null,null,null,null,null,null,null,null,null,null,"EUR",null,null,null,null,null,null,null,null,{"$f":"T19","v":"EUR"},null,"Anteil am landwirtschaftlichen Unternehmen in %"]
[null,null,null,null,null,null,null,null,null,null,null,null,null,null,null,null,null,null,null,"Vorjahr",null,null,null,"akt. Jahr",null,null,null,null,{"$f":"T20","v":"Vorjahr"},{"$f":"X20","v":"akt. Jahr"},"Vorjahr","akt. Jahr"]
[null,null,null,null,null,null,null,null,null,null,null,null,null,null,null,null,null,null,null,{"$f":"'Blatt 1'!T21","v":0},null,null,null,{"$f":"'Blatt 1'!X21","v":0},null,null,null,null,{"$f":"'Blatt 1'!AC21","v":0},{"$f":"'Blatt 1'!AD21","v":0}]
["1.","Umsatzerlöse im Rahmen der einkommensteuerrechtlichen Einkunftsermittlung aus Land- und Forstwirtschaft"]
[]
["1.1","Umsatzerlöse aus pflanzlichen oder tierischen Erzeugnissen, die durch Bodenbewirtschaftung oder durch mit Bodenbewirtschaftung verbundene Tierhaltung gemäß Bewertungsgesetz gewonnen werden inkl. Bestandsveränderung"]
[]
[]
[null,null,null,null,null,null,null,null,null,null,null,null,null,null,null,null,null,null,null,{"$f":"ROUND((AC27*$AE$21/100),0)","v":0},null,null,null,{"$f":"ROUND((AD27*$AF$21/100),0)","v":0},null,null,null,null,{"$f":"'Blatt 1'!AC27","v":0},{"$f":"'Blatt 1'!AD27","v":0}]
[]
["1.2","Umsatzerlöse aus Direktvermarktung land- und forstwirtschaftlicher Erzeugnisse, sonstigen Bereichen (Urlaub auf dem Bauerhof, außerbetrieblicher Maschineneinsatz)2"]
[null,null,null,null,null,null,null,null,null,null,null,null,null,null,null,null,null,null,null,{"$f":"ROUND((AC30*$AE$21/100),0)","v":0},null,null,null,{"$f":"ROUND((AD30*$AF$21/100),0)","v":0},null,null,null,null,{"$f":"'Blatt 1'!AC30","v":0},{"$f":"'Blatt 1'!AD30","v":0}]
[]
["1.3","Zulagen und Zuschüsse (BMELV-Code 2449, etc.):",null,null,null,null,null,null,null,null,null,null,null,null,null,null,null,null,null,{"$f":"ROUND((AC32*$AE$21/100),0)","v":0},null,null,null,{"$f":"ROUND((AD32*$AF$21/100),0)","v":0},null,null,null,null,{"$f":"'Blatt 1'!AC32","v":0},{"$f":"'Blatt 1'!AD32","v":0}]
[]
[null,"Summe der Nr. 1 (= Summe 1)",null,null,null,null,null,null,null,null,null,null,null,null,null,null,null,null,null,{"$f":"IF(ISERROR(T27+T30+T32),0,(T27+T30+T32))","v":0},null,null,{"$f":"SUM(W27+#REF!+W32)","v":{"$error":"#REF!"}},{"$f":"IF(ISERROR(X27+X30+X32),0,(X27+X30+X32))","v":0},null,null,{"$f":"SUM(AA27+#REF!+AA32)","v":{"$error":"#REF!"}},null,{"$f":"IF(ISERROR(AC27+AC30+AC32),0,(AC27+AC30+AC32))","v":0},{"$f":"IF(ISERROR(AD27+AD30+AD32),0,(AD27+AD30+AD32))","v":0}]
[]
["2.","Umsatzerlöse im Rahmen der einkommensteuerrechtlichen Einkunfts-ermittlung aus Gewerbebetrieb und aus Land- und Forstwirtschaft ohne eigene Bodenbewirtschaftung"]
[]
[]
["2.1","gewerbliche Umsatzerlöse im landwirtschaftl. Betrieb aus Handel, Dienst-leistungen, Nebenbetriebe (z.B. Hofladen) (BMELV-Code 2337, etc.):"]
[]
[null,{"$f":"'Blatt 1'!B41","v":0},null,null,null,null,null,null,null,null,null,null,null,null,null,null,null,null,null,{"$f":"ROUND((AC41*$AE$21/100),0)","v":0},null,null,null,{"$f":"ROUND((AD41*$AF$21/100),0)","v":0},null,null,null,null,{"$f":"'Blatt 1'!AC41","v":0},{"$f":"'Blatt 1'!AD41","v":0}]
[]
["2.2","Pacht- und Mieterträge des antragstellenden Unternehmens (BMELV-Code 2325 + 2326, etc.)"]
[null,null,null,null,null,null,null,null,null,null,null,null,null,null,null,null,null,null,null,{"$f":"ROUND((AC44*$AE$21/100),0)","v":0},null,null,null,{"$f":"ROUND((AD44*$AF$21/100),0)","v":0},null,null,null,null,{"$f":"'Blatt 1'!AC44","v":0},{"$f":"'Blatt 1'!AD44","v":0}]
[]
["2.3","Umsatzerlöse aus folgenden beteiligten Gewerbebetrieb (z.B. Bauernhofcafe, Ferienwohnungen, Pferdepension, Photovoltaik, Biogas, Maschineneinsatz):",null,null,null,null,null,null,null,null,null,null,null,null,null,null,null,null,null,null,null,null,null,null,null,null,null,null,null,null,{"$f":"IF(AE50>100,\"Fehler!\",\"\")","v":""},{"$f":"IF(AF50>100,\"Fehler!\",\"\")","v":""}]
[null,null,null,null,null,null,null,null,null,null,null,null,null,null,null,null,null,null,null,null,null,null,null,null,null,null,null,null,null,null,"Anteil der Beteiligung in %"]
["a",null,null,null,null,null,null,null,null,null,null,null,null,null,null,null,null,null,null,{"$f":"ROUND(($I$16*AC48/100),0)","v":0},null,null,null,{"$f":"ROUND(($I$16*AD48/100),0)","v":0},null,null,null,null,{"$f":"'Blatt 1'!AC48","v":0},{"$f":"'Blatt 1'!AD48","v":0},{"$f":"T20","v":"Vorjahr"},{"$f":"X20","v":"akt. Jahr"},{"$f":"IF(AND(AB10=TRUE,AB11=TRUE),\"bei Personenidentität 2.3a nur auf Blatt 5 ausfüllen\",\"\")","v":""}]
[]
["b",null,null,null,null,null,null,null,null,null,null,null,null,null,null,null,null,null,null,{"$f":"ROUND((AC50*AE50/100),0)","v":0},null,null,null,{"$f":"ROUND((AD50*AF50/100),0)","v":0},null,null,null,null,null,null,null,null,{"$f":"IF(AND(AB10=TRUE,AB11=TRUE),\"bei Personenidentität 2.3b nur auf Blatt 2 ausfüllen\",\"\")","v":""}]
[]
["2.4","Umsatzerlöse aus selbständiger Arbeit (z.B. freiberufliche Tätigkeiten wie Referententätigkeit)"]
[null,null,null,null,null,null,null,null,null,null,null,null,null,null,null,null,null,null,null,{"$f":"ROUND((AC53),0)","v":0},null,null,null,{"$f":"ROUND((AD53),0)","v":0},null,null,null,null,null,null,null,null,{"$f":"IF(AND(AB10=TRUE,AB11=TRUE),\"bei Personenidentität 2.4 nur auf Blatt 2 ausfüllen\",\"\")","v":""}]
[]
[null,"Summe der Nr. 2 (= Summe 2)",null,null,null,null,null,null,null,null,null,null,null,null,null,null,null,null,null,{"$f":"IF(ISERROR(T41+T44+T48+T50+T53),0,(T41+T44+T48+T50+T53))","v":0},null,null,{"$f":"SUM(W48+#REF!+W53)","v":{"$error":"#REF!"}},{"$f":"IF(ISERROR(X41+X44+X48+X50+X53),0,(X41+X44+X48+X50+X53))","v":0},null,null,{"$f":"SUM(AA48+#REF!+AA53)","v":{"$error":"#REF!"}},null,{"$f":"IF(ISERROR(AC41+AC44+AC48+AC50+AC53),0,(AC41+AC44+AC48+AC50+AC53))","v":0},{"$f":"IF(ISERROR(AD41+AD44+AD48+AD50+AD53),0,(AD41+AD44+AD48+AD50+AD53))","v":0}]
[]
["Hinweise:"]
["1","Diese Anlage ist dann nicht auszufüllen."]
["2","Bei Nr. 1.2 darf nur eine Eintragung erfolgen, wenn diese Umsatzerlöse in die einkommenssteuerliche Einkunftsermittlung aus Land- und Forstwirtschaft des antragstellenden Unternehmens eingehen. Ansonsten sind diese Erlöse bei Nr. 2.2 zu erfassen."]
["·","Bei Gesellschaften (auch in Kooperationen) ist die Anlage für jeden Gesellschafter einzeln erforderlich. Auch für Gesellschafter deren Kapitalanteil kleiner als 5% ist, ist die Anlage erforderlich."]
["·","Bei Kooperationen sind alle Umsatzerlösen der beteiligten Kooperationspartner zu ermitteln."]
["·","Maßgeblich sind die im Durchschnitt der Berichtsjahre erzielten Umsatzerlöse. Es sind immer die kompletten Umsatzerlöse aus den Buchabschlüssen zu erfassen."]
[]
["·","Als Anlagen sind die der Berechnung zugrundeliegenden Jahresabschlüsse und die entsprechenden Gesellschaftsverträge/Kooperationsvereinbarungen vorzulegen."]
[]
[]
["Mir / uns ist bekannt, dass das ausgefüllte Formblatt als Nachweis zur Erfüllung der Zuwendungsberechtigung beim Direktor der Landwirtschaftskammer NRW als Landesbeauftragter - EU-Zahlstelle - vorgelegt wird."]
[]
[]
[]
[]
[null,{"$f":"'Blatt 1'!B72","v":0}]
[null,"Ort, Datum",null,null,null,null,null,null,null,null,null,null,null,null,null,null,null,"Name Buchstelle, Stempel, Unterschrift Bearbeiter / -in"]

{"sheet":"Blatt 3","index":2,"n_rows":73,"n_cols":33,"rows_kept":73,"cut":false,"hidden":false,"merged":[[15,28,15,29],[17,28,17,29],[18,28,18,29],[45,23,45,26],[47,1,47,17],[47,19,47,22],[47,23,47,26],[58,1,58,29],[50,19,50,22],[50,23,50,26],[51,1,52,18],[52,19,52,22],[52,23,52,26],[53,19,53,22],[53,23,53,26],[44,19,44,22],[44,23,44,26],[45,1,46,18],[45,19,45,22],[49,1,49,17],[49,19,49,22],[49,23,49,26],[48,19,48,22],[48,23,48,26],[71,1,71,6],[59,1,59,29],[60,1,60,29],[61,1,62,29],[63,1,64,29],[54,1,54,16],[54,17,54,18],[54,19,54,22],[54,23,54,26],[57,1,57,29],[66,0,67,29],[38,1,39,18],[38,19,38,22],[38,23,38,26],[40,1,40,17],[40,19,40,22],[40,23,40,26],[41,19,41,22],[41,23,41,26],[42,1,43,18],[42,19,42,22],[42,23,42,26],[43,19,43,22],[43,23,43,26],[32,19,32,22],[32,23,32,26],[33,1,33,16],[33,17,33,18],[33,19,33,22],[33,23,33,26],[34,19,34,22],[34,23,34,26],[35,1,37,18],[35,19,35,22],[35,23,35,26],[36,19,36,22],[36,23,36,26],[37,19,37,22],[37,23,37,26],[27,19,27,22],[27,23,27,26],[28,1,29,18],[29,19,29,22],[29,23,29,26],[30,19,30,22],[30,23,30,26],[31,1,31,18],[31,19,31,22],[31,23,31,26],[23,1,26,18],[23,19,23,22],[23,23,23,26],[24,19,24,22],[24,23,24,26],[25,19,25,22],[25,23,25,26],[26,19,26,22],[26,23,26,26],[17,0,20,18],[17,19,17,26],[18,19,18,26],[19,19,19,22],[19,23,19,26],[20,19,20,22],[20,23,20,26],[21,1,22,18],[21,19,21,22],[21,23,21,26],[22,19,22,22],[22,23,22,26],[0,0,0,2],[3,0,3,26],[6,2,6,26],[9,11,9,14],[9,15,9,16],[9,17,9,26],[10,17,10,26],[12,6,12,26],[15,8,15,9]]}
["Anlage: ",null,null,"Berechnung der Umsatzerlöse aus bodengebundener Produktion"]
[null,null,null,"zum Antrag auf Gewährung von Zuwendungen zur Förderung der Diversifzierung"]
[]
[{"$f":"'Blatt 1'!A4","v":0}]
["Antragstellendes Unternehmen (Name, Vorname, ggf. Unternehmensbezeichnung)"]
[]
[null,null,"Der Unternehmer hat, außer der Bewirtschaftung des antragstellenden landwirtschaftlichen Unternehmens, keine weiteren Erlöse aus gewerblichen Nebenbetriebe, Gewerbebetrieb und/oder selbständiger Tätigkeit.1"]
[]
[]
[null,null,null,null,null,null,null,null,null,null,null,null,null,null,null,null,null,"Unternehmernummer Antragsteller",null,null,null,null,null,null,null,null,null,false]
[null,null,null,null,null,null,null,null,null,null,null,null,null,null,null,null,null,{"$f":"'Blatt 1'!R11","v":0},null,null,null,null,null,null,null,null,null,false]
[]
[]
[null,null,null,null,null,null,"(Name, Vorname)"]
[]
[null,null,null,null,null,null,null,"mit ",null,null,"% Anteil am antragstellendes Unternehmen"]
[]
["Der genannte antragstellende Einzelunternehmer / Gesellschafter\nhat folgende Umsatzerlöse aus dem antragstellenden Unternehmen:",null,null,null,null,null,null,null,null,null,null,null,null,null,null,null,null,null,null,"Wirtschaftsjahr (anteilig)",null,null,null,null,null,null,null,null,"Wirtschaftsjahr (100%)",null,{"$f":"IF(AND(AB10=TRUE,AB11=TRUE),\"bei Personenidentität Blatt 3 und Blatt 6 ausfüllen\",\"\")","v":""}]
[null,null,null,null,null,null,null,null,null,null,null,null,null,null,null,null,null,null,null,"EUR",null,null,null,null,null,null,null,null,{"$f":"T19","v":"EUR"},null,"Anteil am landwirtschaftlichen Unternehmen in %"]
[null,null,null,null,null,null,null,null,null,null,null,null,null,null,null,null,null,null,null,"Vorjahr",null,null,null,"akt. Jahr",null,null,null,null,{"$f":"T20","v":"Vorjahr"},{"$f":"X20","v":"akt. Jahr"},"Vorjahr","akt. Jahr"]
[null,null,null,null,null,null,null,null,null,null,null,null,null,null,null,null,null,null,null,{"$f":"'Blatt 1'!T21","v":0},null,null,null,{"$f":"'Blatt 1'!X21","v":0},null,null,null,null,{"$f":"'Blatt 1'!AC21","v":0},{"$f":"'Blatt 1'!AD21","v":0}]
["1.","Umsatzerlöse im Rahmen der einkommensteuerrechtlichen Einkunftsermittlung aus Land- und Forstwirtschaft"]
[]
["1.1","Umsatzerlöse aus pflanzlichen oder tierischen Erzeugnissen, die durch Bodenbewirtschaftung oder durch mit Bodenbewirtschaftung verbundene Tierhaltung gemäß Bewertungsgesetz gewonnen werden inkl. Bestandsveränderung"]
[]
[]
[null,null,null,null,null,null,null,null,null,null,null,null,null,null,null,null,null,null,null,{"$f":"ROUND((AC27*$AE$21/100),0)","v":0},null,null,null,{"$f":"ROUND((AD27*$AF$21/100),0)","v":0},null,null,null,null,{"$f":"'Blatt 1'!AC27","v":0},{"$f":"'Blatt 1'!AD27","v":0}]
[]
["1.2","Umsatzerlöse aus Direktvermarktung land- und forstwirtschaftlicher Erzeugnisse, sonstigen Bereichen (Urlaub auf dem Bauerhof, außerbetrieblicher Maschineneinsatz)2"]
[null,null,null,null,null,null,null,null,null,null,null,null,null,null,null,null,null,null,null,{"$f":"ROUND((AC30*$AE$21/100),0)","v":0},null,null,null,{"$f":"ROUND((AD30*$AF$21/100),0)","v":0},null,null,null,null,{"$f":"'Blatt 1'!AC30","v":0},{"$f":"'Blatt 1'!AD30","v":0}]
[]
["1.3","Zulagen und Zuschüsse (BMELV-Code 2449, etc.):",null,null,null,null,null,null,null,null,null,null,null,null,null,null,null,null,null,{"$f":"ROUND((AC32*$AE$21/100),0)","v":0},null,null,null,{"$f":"ROUND((AD32*$AF$21/100),0)","v":0},null,null,null,null,{"$f":"'Blatt 1'!AC32","v":0},{"$f":"'Blatt 1'!AD32","v":0}]
[]
[null,"Summe der Nr. 1 (= Summe 1)",null,null,null,null,null,null,null,null,null,null,null,null,null,null,null,null,null,{"$f":"IF(ISERROR(T27+T30+T32),0,(T27+T30+T32))","v":0},null,null,{"$f":"SUM(W27+#REF!+W32)","v":{"$error":"#REF!"}},{"$f":"IF(ISERROR(X27+X30+X32),0,(X27+X30+X32))","v":0},null,null,{"$f":"SUM(AA27+#REF!+AA32)","v":{"$error":"#REF!"}},null,{"$f":"IF(ISERROR(AC27+AC30+AC32),0,(AC27+AC30+AC32))","v":0},{"$f":"IF(ISERROR(AD27+AD30+AD32),0,(AD27+AD30+AD32))","v":0}]
[]
["2.","Umsatzerlöse im Rahmen der einkommensteuerrechtlichen Einkunfts-ermittlung aus Gewerbebetrieb und aus Land- und Forstwirtschaft ohne eigene Bodenbewirtschaftung"]
[]
[]
["2.1","gewerbliche Umsatzerlöse im landwirtschaftl. Betrieb aus Handel, Dienst-leistungen, Nebenbetriebe (z.B. Hofladen) (BMELV-Code 2337, etc.):"]
[]
[null,{"$f":"'Blatt 1'!B41","v":0},null,null,null,null,null,null,null,null,null,null,null,null,null,null,null,null,null,{"$f":"ROUND((AC41*$AE$21/100),0)","v":0},null,null,null,{"$f":"ROUND((AD41*$AF$21/100),0)","v":0},null,null,null,null,{"$f":"'Blatt 1'!AC41","v":0},{"$f":"'Blatt 1'!AD41","v":0}]
[]
["2.2","Pacht- und Mieterträge des antragstellenden Unternehmens (BMELV-Code 2325 + 2326, etc.)"]
[null,null,null,null,null,null,null,null,null,null,null,null,null,null,null,null,null,null,null,{"$f":"ROUND((AC44*$AE$21/100),0)","v":0},null,null,null,{"$f":"ROUND((AD44*$AF$21/100),0)","v":0},null,null,null,null,{"$f":"'Blatt 1'!AC44","v":0},{"$f":"'Blatt 1'!AD44","v":0}]
[]
["2.3","Umsatzerlöse aus folgenden beteiligten Gewerbebetrieb (z.B. Bauernhofcafe, Ferienwohnungen, Pferdepension, Photovoltaik, Biogas, Maschineneinsatz):",null,null,null,null,null,null,null,null,null,null,null,null,null,null,null,null,null,null,null,null,null,null,null,null,null,null,null,null,{"$f":"IF(AE50>100,\"Fehler!\",\"\")","v":""},{"$f":"IF(AF50>100,\"Fehler!\",\"\")","v":""}]
[null,null,null,null,null,null,null,null,null,null,null,null,null,null,null,null,null,null,null,null,null,null,null,null,null,null,null,null,null,null,"Anteil der Beteiligung in %"]
["a",null,null,null,null,null,null,null,null,null,null,null,null,null,null,null,null,null,null,{"$f":"ROUND(($I$16*AC48/100),0)","v":0},null,null,null,{"$f":"ROUND(($I$16*AD48/100),0)","v":0},null,null,null,null,{"$f":"'Blatt 1'!AC48","v":0},{"$f":"'Blatt 1'!AD48","v":0},{"$f":"T20","v":"Vorjahr"},{"$f":"X20","v":"akt. Jahr"},{"$f":"IF(AND(AB10=TRUE,AB11=TRUE),\"bei Personenidentität 2.3a nur auf Blatt 6 ausfüllen\",\"\")","v":""}]
[]
["b",null,null,null,null,null,null,null,null,null,null,null,null,null,null,null,null,null,null,{"$f":"ROUND((AC50*AE50/100),0)","v":0},null,null,null,{"$f":"ROUND((AD50*AF50/100),0)","v":0},null,null,null,null,null,null,null,null,{"$f":"IF(AND(AB10=TRUE,AB11=TRUE),\"bei Personenidentität 2.3b nur auf Blatt 3 ausfüllen\",\"\")","v":""}]
[]
["2.4","Umsatzerlöse aus selbständiger Arbeit (z.B. freiberufliche Tätigkeiten wie Referententätigkeit)"]
[null,null,null,null,null,null,null,null,null,null,null,null,null,null,null,null,null,null,null,{"$f":"ROUND((AC53),0)","v":0},null,null,null,{"$f":"ROUND((AD53),0)","v":0},null,null,null,null,null,null,null,null,{"$f":"IF(AND(AB10=TRUE,AB11=TRUE),\"bei Personenidentität 2.4 nur auf Blatt 3 ausfüllen\",\"\")","v":""}]
[]
[null,"Summe der Nr. 2 (= Summe 2)",null,null,null,null,null,null,null,null,null,null,null,null,null,null,null,null,null,{"$f":"IF(ISERROR(T41+T44+T48+T50+T53),0,(T41+T44+T48+T50+T53))","v":0},null,null,{"$f":"SUM(W48+#REF!+W53)","v":{"$error":"#REF!"}},{"$f":"IF(ISERROR(X41+X44+X48+X50+X53),0,(X41+X44+X48+X50+X53))","v":0},null,null,{"$f":"SUM(AA48+#REF!+AA53)","v":{"$error":"#REF!"}},null,{"$f":"IF(ISERROR(AC41+AC44+AC48+AC50+AC53),0,(AC41+AC44+AC48+AC50+AC53))","v":0},{"$f":"IF(ISERROR(AD41+AD44+AD48+AD50+AD53),0,(AD41+AD44+AD48+AD50+AD53))","v":0}]
[]
["Hinweise:"]
["1","Diese Anlage ist dann nicht auszufüllen."]
["2","Bei Nr. 1.2 darf nur eine Eintragung erfolgen, wenn diese Umsatzerlöse in die einkommenssteuerliche Einkunftsermittlung aus Land- und Forstwirtschaft des antragstellenden Unternehmens eingehen. Ansonsten sind diese Erlöse bei Nr. 2.2 zu erfassen."]
["·","Bei Gesellschaften (auch in Kooperationen) ist die Anlage für jeden Gesellschafter einzeln erforderlich. Auch für Gesellschafter deren Kapitalanteil kleiner als 5% ist, ist die Anlage erforderlich."]
["·","Bei Kooperationen sind alle Umsatzerlösen der beteiligten Kooperationspartner zu ermitteln."]
["·","Maßgeblich sind die im Durchschnitt der Berichtsjahre erzielten Umsatzerlöse. Es sind immer die kompletten Umsatzerlöse aus den Buchabschlüssen zu erfassen."]
[]
["·","Als Anlagen sind die der Berechnung zugrundeliegenden Jahresabschlüsse und die entsprechenden Gesellschaftsverträge/Kooperationsvereinbarungen vorzulegen."]
[]
[]
["Mir / uns ist bekannt, dass das ausgefüllte Formblatt als Nachweis zur Erfüllung der Zuwendungsberechtigung beim Direktor der Landwirtschaftskammer NRW als Landesbeauftragter - EU-Zahlstelle - vorgelegt wird."]
[]
[]
[]
[]
[null,{"$f":"'Blatt 1'!B72","v":0}]
[null,"Ort, Datum",null,null,null,null,null,null,null,null,null,null,null,null,null,null,null,"Name Buchstelle, Stempel, Unterschrift Bearbeiter / -in"]

{"sheet":"Blatt 4","index":3,"n_rows":73,"n_cols":33,"rows_kept":73,"cut":false,"hidden":false,"merged":[[66,0,67,29],[71,1,71,6],[57,1,57,29],[58,1,58,29],[59,1,59,29],[60,1,60,29],[61,1,62,29],[63,1,64,29],[51,1,52,18],[52,19,52,22],[52,23,52,26],[53,19,53,22],[53,23,53,26],[54,1,54,16],[54,17,54,18],[54,19,54,22],[54,23,54,26],[48,19,48,22],[48,23,48,26],[49,1,49,17],[49,19,49,22],[49,23,49,26],[50,19,50,22],[50,23,50,26],[44,19,44,22],[44,23,44,26],[45,1,46,18],[45,19,45,21],[45,23,45,25],[47,1,47,17],[47,19,47,22],[47,23,47,26],[41,19,41,22],[41,23,41,26],[42,1,43,18],[42,19,42,22],[42,23,42,26],[43,19,43,22],[43,23,43,26],[38,1,39,18],[38,19,38,22],[38,23,38,26],[40,1,40,17],[40,19,40,22],[40,23,40,26],[34,19,34,22],[34,23,34,26],[35,1,37,18],[35,19,35,22],[35,23,35,26],[36,19,36,22],[36,23,36,26],[37,19,37,22],[37,23,37,26],[31,1,31,18],[31,19,31,22],[31,23,31,26],[32,19,32,22],[32,23,32,26],[33,1,33,16],[33,17,33,18],[33,19,33,22],[33,23,33,26],[27,19,27,22],[27,23,27,26],[28,1,29,18],[29,19,29,22],[29,23,29,26],[30,19,30,22],[30,23,30,26],[23,1,26,18],[23,19,23,22],[23,23,23,26],[24,19,24,22],[24,23,24,26],[25,19,25,22],[25,23,25,26],[26,19,26,22],[26,23,26,26],[20,19,20,22],[20,23,20,26],[21,1,22,18],[21,19,21,22],[21,23,21,26],[22,19,22,22],[22,23,22,26],[10,17,10,26],[12,6,12,26],[15,8,15,9],[17,0,20,18],[17,19,17,26],[17,28,17,29],[18,19,18,26],[18,28,18,29],[19,19,19,22],[19,23,19,26],[0,0,0,2],[3,0,3,26],[6,2,6,26],[9,11,9,14],[9,15,9,16],[9,17,9,26]]}
["Anlage: ",null,null,"Berechnung der Umsatzerlöse aus bodengebundener Produktion"]
[null,null,null,"zum Antrag auf Gewährung von Zuwendungen zur Förderung der Diversifzierung"]
[]
[{"$f":"'Blatt 1'!A4","v":0}]
["Antragstellendes Unternehmen (Name, Vorname, ggf. Unternehmensbezeichnung)"]
[]
[null,null,"Der Unternehmer hat, außer der Bewirtschaftung des antragstellenden landwirtschaftlichen Unternehmens, keine weiteren Erlöse aus gewerblichen Nebenbetriebe, Gewerbebetrieb und/oder selbständiger Tätigkeit.1"]
[]
[]
[null,null,null,null,null,null,null,null,null,null,null,null,null,null,null,null,null,"Unternehmernummer Antragsteller",null,null,null,null,null,null,null,null,null,false]
[null,null,null,null,null,null,null,null,null,null,null,null,null,null,null,null,null,{"$f":"'Blatt 1'!R11","v":0},null,null,null,null,null,null,null,null,null,false]
[]
[null,null,null,null,null,null,{"$f":"IF(AND('Blatt 1'!AB10,'Blatt 1'!AB11,AB10=TRUE,AB11=TRUE),'Blatt 1'!G13,\"\")","v":""}]
[null,null,null,null,null,null,"(Name, Vorname)"]
[]
[null,null,null,null,null,null,null,"mit ",null,null,"% Anteil am antragstellendes Unternehmen"]
[]
["Der genannte antragstellende Einzelunternehmer / Gesellschafter\nhat folgende Umsatzerlöse aus dem antragstellenden Unternehmen:",null,null,null,null,null,null,null,null,null,null,null,null,null,null,null,null,null,null,"Wirtschaftsjahr",null,null,null,null,null,null,null,null,"Wirtschaftsjahr (100%)"]
[null,null,null,null,null,null,null,null,null,null,null,null,null,null,null,null,null,null,null,"EUR",null,null,null,null,null,null,null,null,{"$f":"T19","v":"EUR"},null,{"$f":"IF(AND(AB10=TRUE,AB11=TRUE),\"bei Personenidentität Blatt 4 und Blatt 1 ausfüllen\",\"\")","v":""}]
[null,null,null,null,null,null,null,null,null,null,null,null,null,null,null,null,null,null,null,"Vorjahr",null,null,null,"akt. Jahr",null,null,null,null,{"$f":"T20","v":"Vorjahr"},{"$f":"X20","v":"akt. Jahr"}]
[null,null,null,null,null,null,null,null,null,null,null,null,null,null,null,null,null,null,null,{"$f":"AC21","v":0},null,null,null,{"$f":"AD21","v":0},null,null,null,null,{"$f":"'Blatt 1'!AC21","v":0},{"$f":"'Blatt 1'!AD21","v":0}]
["1.","Umsatzerlöse im Rahmen der einkommensteuerrechtlichen Einkunftsermittlung aus Land- und Forstwirtschaft"]
[]
["1.1","Umsatzerlöse aus pflanzlichen oder tierischen Erzeugnissen, die durch Bodenbewirtschaftung oder durch mit Bodenbewirtschaftung verbundene Tierhaltung gemäß Bewertungsgesetz gewonnen werden inkl. Bestandsveränderung"]
[]
[]
[null,null,null,null,null,null,null,null,null,null,null,null,null,null,null,null,null,null,null,null,null,null,null,null,null,null,null,null,{"$f":"IF(AND('Blatt 1'!$AB$10=TRUE,'Blatt 1'!$AB$11=TRUE),'Blatt 1'!AC27,0)","v":0},{"$f":"IF(AND('Blatt 1'!$AB$10=TRUE,'Blatt 1'!$AB$11=TRUE),'Blatt 1'!AD27,0)","v":0}]
[]
["1.2","Umsatzerlöse aus Direktvermarktung land- und forstwirtschaftlicher Erzeugnisse, sonstigen Bereichen (Urlaub auf dem Bauerhof, außerbetrieblicher Maschineneinsatz)2"]
[null,null,null,null,null,null,null,null,null,null,null,null,null,null,null,null,null,null,null,null,null,null,null,null,null,null,null,null,{"$f":"IF(AND('Blatt 1'!$AB$10=TRUE,'Blatt 1'!$AB$11=TRUE),'Blatt 1'!AC30,0)","v":0},{"$f":"IF(AND('Blatt 1'!$AB$10=TRUE,'Blatt 1'!$AB$11=TRUE),'Blatt 1'!AD30,0)","v":0}]
[]
["1.3","Zulagen und Zuschüsse (BMELV-Code 2449, etc.):",null,null,null,null,null,null,null,null,null,null,null,null,null,null,null,null,null,null,null,null,null,null,null,null,null,null,{"$f":"IF(AND('Blatt 1'!$AB$10=TRUE,'Blatt 1'!$AB$11=TRUE),'Blatt 1'!AC32,0)","v":0},{"$f":"IF(AND('Blatt 1'!$AB$10=TRUE,'Blatt 1'!$AB$11=TRUE),'Blatt 1'!AD32,0)","v":0}]
[]
[null,"Summe der Nr. 1 (= Summe 1)",null,null,null,null,null,null,null,null,null,null,null,null,null,null,null,null,null,{"$f":"IF(ISERROR(T27+T30+T32),0,(T27+T30+T32))","v":0},null,null,{"$f":"SUM(W27+#REF!+W32)","v":{"$error":"#REF!"}},{"$f":"IF(ISERROR(X27+X30+X32),0,(X27+X30+X32))","v":0},null,null,{"$f":"SUM(AA27+#REF!+AA32)","v":{"$error":"#REF!"}},null,{"$f":"IF(ISERROR(AC27+AC30+AC32),0,(AC27+AC30+AC32))","v":0},{"$f":"IF(ISERROR(AD27+AD30+AD32),0,(AD27+AD30+AD32))","v":0}]
[]
["2.","Umsatzerlöse im Rahmen der einkommensteuerrechtlichen Einkunfts-ermittlung aus Gewerbebetrieb und aus Land- und Forstwirtschaft ohne eigene Bodenbewirtschaftung"]
[]
[]
["2.1","gewerbliche Umsatzerlöse im landwirtschaftl. Betrieb aus Handel, Dienst-leistungen, Nebenbetriebe (z.B. Hofladen) (BMELV-Code 2337, etc.):"]
[]
[null,{"$f":"IF(AND('Blatt 2'!$AB$10=TRUE,'Blatt 2'!$AB$11=TRUE),'Blatt 2'!B41,\"\")","v":""},null,null,null,null,null,null,null,null,null,null,null,null,null,null,null,null,null,null,null,null,null,null,null,null,null,null,{"$f":"IF(AND('Blatt 1'!$AB$10=TRUE,'Blatt 1'!$AB$11=TRUE),'Blatt 1'!AC41,0)","v":0},{"$f":"IF(AND('Blatt 1'!$AB$10=TRUE,'Blatt 1'!$AB$11=TRUE),'Blatt 1'!AD41,0)","v":0}]
[]
["2.2","Pacht- und Mieterträge des antragstellenden Unternehmens (BMELV-Code 2325 + 2326, etc.)"]
[null,null,null,null,null,null,null,null,null,null,null,null,null,null,null,null,null,null,null,null,null,null,null,null,null,null,null,null,{"$f":"IF(AND('Blatt 1'!$AB$10=TRUE,'Blatt 1'!$AB$11=TRUE),'Blatt 1'!AC44,0)","v":0},{"$f":"IF(AND('Blatt 1'!$AB$10=TRUE,'Blatt 1'!$AB$11=TRUE),'Blatt 1'!AD44,0)","v":0},{"$f":"IF(AE48>100,\"Fehler!\",\"\")","v":""},{"$f":"IF(AF48>100,\"Fehler!\",\"\")","v":""}]
[]
["2.3","Umsatzerlöse aus folgenden beteiligten Gewerbebetrieb (z.B. Bauernhofcafe, Ferienwohnungen, Pferdepension, Photovoltaik, Biogas, Maschineneinsatz):",null,null,null,null,null,null,null,null,null,null,null,null,null,null,null,null,null,null,null,null,null,null,null,null,null,null,null,null,"Anteil der Beteiligung in %"]
[null,null,null,null,null,null,null,null,null,null,null,null,null,null,null,null,null,null,null,null,null,null,null,null,null,null,null,null,null,null,{"$f":"T20","v":"Vorjahr"},{"$f":"X20","v":"akt. Jahr"}]
["a",null,null,null,null,null,null,null,null,null,null,null,null,null,null,null,null,null,null,{"$f":"ROUND((AC48*AE48/100),0)","v":0},null,null,null,{"$f":"ROUND((AD48*AF48/100),0)","v":0},null,null,null,null,null,null,null,null,{"$f":"IF(AND(AB10=TRUE,AB11=TRUE),\"bei Personenidentität 2.3a nur auf Blatt 4 ausfüllen\",\"\")","v":""}]
[]
["b",null,null,null,null,null,null,null,null,null,null,null,null,null,null,null,null,null,null,{"$f":"ROUND((AC50*AE50/100),0)","v":0},null,null,null,{"$f":"ROUND((AD50*AF50/100),0)","v":0},null,null,null,null,null,null,null,null,{"$f":"IF(AND(AB10=TRUE,AB11=TRUE),\"bei Personenidentität 2.3b nur auf Blatt 1 ausfüllen\",\"\")","v":""}]
[]
["2.4","Umsatzerlöse aus selbständiger Arbeit (z.B. freiberufliche Tätigkeiten wie Referententätigkeit)",null,null,null,null,null,null,null,null,null,null,null,null,null,null,null,null,null,null,null,null,null,null,null,null,null,null,null,null,{"$f":"IF(AE50>100,\"Fehler!\",\"\")","v":""},{"$f":"IF(AF50>100,\"Fehler!\",\"\")","v":""},{"$f":"IF(AND(AB9=TRUE,AB10=TRUE),\"bei Personenidentität 2.4 nur auf Blatt 1 ausfüllen\",\"\")","v":""}]
[null,null,null,null,null,null,null,null,null,null,null,null,null,null,null,null,null,null,null,{"$f":"ROUND((AC53),0)","v":0},null,null,null,{"$f":"ROUND((AD53),0)","v":0},null,null,null,null,null,null,null,null,{"$f":"IF(AND(AB10=TRUE,AB11=TRUE),\"bei Personenidentität 2.4 nur auf Blatt 1 ausfüllen\",\"\")","v":""}]
[]
[null,"Summe der Nr. 2 (= Summe 2)",null,null,null,null,null,null,null,null,null,null,null,null,null,null,null,null,null,{"$f":"IF(ISERROR(T41+T44+T50+T48+T53),0,(T41+T44+T50+T48+T53))","v":0},null,null,null,{"$f":"IF(ISERROR(X41+X44+X50+X48+X53),0,(X41+X44+X50+X48+X53))","v":0},null,null,null,null,{"$f":"IF(ISERROR(AC41+AC44+AC50+AC48+AC53),0,(AC41+AC44+AC50+AC48+AC53))","v":0},{"$f":"IF(ISERROR(AD41+AD44+AD50+AD48+AD53),0,(AD41+AD44+AD50+AD48+AD53))","v":0}]
[]
["Hinweise:"]
["1","Diese Anlage ist dann nicht auszufüllen."]
["2","Bei Nr. 1.2 darf nur eine Eintragung erfolgen, wenn diese Umsatzerlöse in die einkommenssteuerliche Einkunftsermittlung aus Land- und Forstwirtschaft des antragstellenden Unternehmens eingehen. Ansonsten sind diese Erlöse bei Nr. 2.2 zu erfassen."]
["·","Bei Gesellschaften (auch in Kooperationen) ist die Anlage für jeden Gesellschafter einzeln erforderlich. Auch für Gesellschafter deren Kapitalanteil kleiner als 5% ist, ist die Anlage erforderlich."]
["·","Bei Kooperationen sind alle Umsatzerlösen der beteiligten Kooperationspartner zu ermitteln."]
["·","Maßgeblich sind die im Durchschnitt der Berichtsjahre erzielten Umsatzerlöse. Es sind immer die kompletten Umsatzerlöse aus den Buchabschlüssen zu erfassen."]
[]
["·","Als Anlagen sind die der Berechnung zugrundeliegenden Jahresabschlüsse und die entsprechenden Gesellschaftsverträge/Kooperationsvereinbarungen vorzulegen."]
[]
[]
["Mir / uns ist bekannt, dass das ausgefüllte Formblatt als Nachweis zur Erfüllung der Zuwendungsberechtigung beim Direktor der Landwirtschaftskammer NRW als Landesbeauftragter - EU-Zahlstelle - vorgelegt wird."]
[]
[]
[]
[]
[null,{"$f":"'Blatt 1'!B72","v":0}]
[null,"Ort, Datum",null,null,null,null,null,null,null,null,null,null,null,null,null,null,null,"Name Buchstelle, Stempel, Unterschrift Bearbeiter / -in"]

{"sheet":"Blatt 5","index":4,"n_rows":73,"n_cols":33,"rows_kept":73,"cut":false,"hidden":false,"merged":[[17,28,17,29],[18,28,18,29],[45,19,45,21],[49,19,49,22],[57,1,57,29],[58,1,58,29],[50,19,50,22],[50,23,50,26],[51,1,52,18],[53,19,53,22],[53,23,53,26],[44,19,44,22],[44,23,44,26],[48,19,48,22],[48,23,48,26],[47,1,47,17],[47,19,47,22],[47,23,47,26],[41,19,41,22],[41,23,41,26],[42,1,43,18],[42,19,42,22],[42,23,42,26],[52,19,52,22],[71,1,71,6],[59,1,59,29],[60,1,60,29],[61,1,62,29],[63,1,64,29],[54,1,54,16],[54,17,54,18],[54,19,54,22],[54,23,54,26],[66,0,67,29],[52,23,52,26],[43,19,43,22],[43,23,43,26],[38,1,39,18],[38,19,38,22],[38,23,38,26],[40,1,40,17],[40,19,40,22],[40,23,40,26],[45,1,46,18],[45,23,45,25],[49,1,49,17],[49,23,49,26],[32,19,32,22],[32,23,32,26],[33,1,33,16],[33,17,33,18],[33,19,33,22],[33,23,33,26],[34,19,34,22],[34,23,34,26],[35,1,37,18],[35,19,35,22],[35,23,35,26],[36,19,36,22],[36,23,36,26],[37,19,37,22],[37,23,37,26],[27,19,27,22],[27,23,27,26],[28,1,29,18],[29,19,29,22],[29,23,29,26],[30,19,30,22],[30,23,30,26],[31,1,31,18],[31,19,31,22],[31,23,31,26],[0,0,0,2],[3,0,3,26],[6,2,6,26],[9,11,9,14],[9,15,9,16],[9,17,9,26],[10,17,10,26],[12,6,12,26],[15,8,15,9],[23,1,26,18],[17,0,20,18],[17,19,17,26],[18,19,18,26],[19,19,19,22],[19,23,19,26],[20,19,20,22],[20,23,20,26],[21,1,22,18],[21,19,21,22],[21,23,21,26],[22,19,22,22],[22,23,22,26],[23,19,23,22],[23,23,23,26],[24,19,24,22],[24,23,24,26],[25,19,25,22],[25,23,25,26],[26,19,26,22],[26,23,26,26]]}
["Anlage: ",null,null,"Berechnung der Umsatzerlöse aus bodengebundener Produktion"]
[null,null,null,"zum Antrag auf Gewährung von Zuwendungen zur Förderung der Diversifzierung"]
[]
[{"$f":"'Blatt 1'!A4","v":0}]
["Antragstellendes Unternehmen (Name, Vorname, ggf. Unternehmensbezeichnung)"]
[]
[null,null,"Der Unternehmer hat, außer der Bewirtschaftung des antragstellenden landwirtschaftlichen Unternehmens, keine weiteren Erlöse aus gewerblichen Nebenbetriebe, Gewerbebetrieb und/oder selbständiger Tätigkeit.1"]
[]
[]
[null,null,null,null,null,null,null,null,null,null,null,null,null,null,null,null,null,"Unternehmernummer Antragsteller",null,null,null,null,null,null,null,null,null,false]
[null,null,null,null,null,null,null,null,null,null,null,null,null,null,null,null,null,{"$f":"'Blatt 1'!R11","v":0},null,null,null,null,null,null,null,null,null,false]
[]
[null,null,null,null,null,null,{"$f":"IF(AND('Blatt 2'!AB10,'Blatt 2'!AB11,AB10=TRUE,AB11=TRUE),'Blatt 2'!G13,\"\")","v":""}]
[null,null,null,null,null,null,"(Name, Vorname)"]
[]
[null,null,null,null,null,null,null,"mit ",null,null,"% Anteil am antragstellendes Unternehmen"]
[]
["Der genannte antragstellende Einzelunternehmer / Gesellschafter\nhat folgende Umsatzerlöse aus dem antragstellenden Unternehmen:",null,null,null,null,null,null,null,null,null,null,null,null,null,null,null,null,null,null,"Wirtschaftsjahr",null,null,null,null,null,null,null,null,"Wirtschaftsjahr (100%)"]
[null,null,null,null,null,null,null,null,null,null,null,null,null,null,null,null,null,null,null,"EUR",null,null,null,null,null,null,null,null,{"$f":"T19","v":"EUR"},null,{"$f":"IF(AND(AB10=TRUE,AB11=TRUE),\"bei Personenidentität Blatt 5 und Blatt 2 ausfüllen\",\"\")","v":""}]
[null,null,null,null,null,null,null,null,null,null,null,null,null,null,null,null,null,null,null,"Vorjahr",null,null,null,"akt. Jahr",null,null,null,null,{"$f":"T20","v":"Vorjahr"},{"$f":"X20","v":"akt. Jahr"}]
[null,null,null,null,null,null,null,null,null,null,null,null,null,null,null,null,null,null,null,{"$f":"AC21","v":0},null,null,null,{"$f":"AD21","v":0},null,null,null,null,{"$f":"'Blatt 4'!AC21","v":0},{"$f":"'Blatt 4'!AD21","v":0}]
["1.","Umsatzerlöse im Rahmen der einkommensteuerrechtlichen Einkunftsermittlung aus Land- und Forstwirtschaft"]
[]
["1.1","Umsatzerlöse aus pflanzlichen oder tierischen Erzeugnissen, die durch Bodenbewirtschaftung oder durch mit Bodenbewirtschaftung verbundene Tierhaltung gemäß Bewertungsgesetz gewonnen werden inkl. Bestandsveränderung"]
[]
[]
[null,null,null,null,null,null,null,null,null,null,null,null,null,null,null,null,null,null,null,null,null,null,null,null,null,null,null,null,{"$f":"IF(AND('Blatt 2'!$AB$10=TRUE,'Blatt 2'!$AB$11=TRUE),'Blatt 2'!AC27,0)","v":0},{"$f":"IF(AND('Blatt 2'!$AB$10=TRUE,'Blatt 2'!$AB$11=TRUE),'Blatt 2'!AD27,0)","v":0}]
[]
["1.2","Umsatzerlöse aus Direktvermarktung land- und forstwirtschaftlicher Erzeugnisse, sonstigen Bereichen (Urlaub auf dem Bauerhof, außerbetrieblicher Maschineneinsatz)2"]
[null,null,null,null,null,null,null,null,null,null,null,null,null,null,null,null,null,null,null,null,null,null,null,null,null,null,null,null,{"$f":"IF(AND('Blatt 2'!$AB$10=TRUE,'Blatt 2'!$AB$11=TRUE),'Blatt 2'!AC30,0)","v":0},{"$f":"IF(AND('Blatt 2'!$AB$10=TRUE,'Blatt 2'!$AB$11=TRUE),'Blatt 2'!AD30,0)","v":0}]
[]
["1.3","Zulagen und Zuschüsse (BMELV-Code 2449, etc.):",null,null,null,null,null,null,null,null,null,null,null,null,null,null,null,null,null,null,null,null,null,null,null,null,null,null,{"$f":"IF(AND('Blatt 2'!$AB$10=TRUE,'Blatt 2'!$AB$11=TRUE),'Blatt 2'!AC32,0)","v":0},{"$f":"IF(AND('Blatt 2'!$AB$10=TRUE,'Blatt 2'!$AB$11=TRUE),'Blatt 2'!AD32,0)","v":0}]
[]
[null,"Summe der Nr. 1 (= Summe 1)",null,null,null,null,null,null,null,null,null,null,null,null,null,null,null,null,null,{"$f":"IF(ISERROR(T27+T30+T32),0,(T27+T30+T32))","v":0},null,null,{"$f":"SUM(W27+#REF!+W32)","v":{"$error":"#REF!"}},{"$f":"IF(ISERROR(X27+X30+X32),0,(X27+X30+X32))","v":0},null,null,{"$f":"SUM(AA27+#REF!+AA32)","v":{"$error":"#REF!"}},null,{"$f":"IF(ISERROR(AC27+AC30+AC32),0,(AC27+AC30+AC32))","v":0},{"$f":"IF(ISERROR(AD27+AD30+AD32),0,(AD27+AD30+AD32))","v":0}]
[]
["2.","Umsatzerlöse im Rahmen der einkommensteuerrechtlichen Einkunfts-ermittlung aus Gewerbebetrieb und aus Land- und Forstwirtschaft ohne eigene Bodenbewirtschaftung"]
[]
[]
["2.1","gewerbliche Umsatzerlöse im landwirtschaftl. Betrieb aus Handel, Dienst-leistungen, Nebenbetriebe (z.B. Hofladen) (BMELV-Code 2337, etc.):"]
[]
[null,{"$f":"IF(AND('Blatt 2'!$AB$10=TRUE,'Blatt 2'!$AB$11=TRUE),'Blatt 2'!B41,\"\")","v":""},null,null,null,null,null,null,null,null,null,null,null,null,null,null,null,null,null,null,null,null,null,null,null,null,null,null,{"$f":"IF(AND('Blatt 2'!$AB$10=TRUE,'Blatt 2'!$AB$11=TRUE),'Blatt 2'!AC41,0)","v":0},{"$f":"IF(AND('Blatt 2'!$AB$10=TRUE,'Blatt 2'!$AB$11=TRUE),'Blatt 2'!AD41,0)","v":0}]
[]
["2.2","Pacht- und Mieterträge des antragstellenden Unternehmens (BMELV-Code 2325 + 2326, etc.)"]
[null,null,null,null,null,null,null,null,null,null,null,null,null,null,null,null,null,null,null,null,null,null,null,null,null,null,null,null,{"$f":"IF(AND('Blatt 2'!$AB$10=TRUE,'Blatt 2'!$AB$11=TRUE),'Blatt 2'!AC44,0)","v":0},{"$f":"IF(AND('Blatt 2'!$AB$10=TRUE,'Blatt 2'!$AB$11=TRUE),'Blatt 2'!AD44,0)","v":0},{"$f":"IF(AE48>100,\"Fehler!\",\"\")","v":""},{"$f":"IF(AF48>100,\"Fehler!\",\"\")","v":""}]
[]
["2.3","Umsatzerlöse aus folgenden beteiligten Gewerbebetrieb (z.B. Bauernhofcafe, Ferienwohnungen, Pferdepension, Photovoltaik, Biogas, Maschineneinsatz):",null,null,null,null,null,null,null,null,null,null,null,null,null,null,null,null,null,null,null,null,null,null,null,null,null,null,null,null,"Anteil der Beteiligung in %"]
[null,null,null,null,null,null,null,null,null,null,null,null,null,null,null,null,null,null,null,null,null,null,null,null,null,null,null,null,null,null,{"$f":"T20","v":"Vorjahr"},{"$f":"X20","v":"akt. Jahr"}]
["a",null,null,null,null,null,null,null,null,null,null,null,null,null,null,null,null,null,null,{"$f":"ROUND((AC48*AE48/100),0)","v":0},null,null,null,{"$f":"ROUND((AD48*AF48/100),0)","v":0},null,null,null,null,null,null,null,null,{"$f":"IF(AND(AB10=TRUE,AB11=TRUE),\"bei Personenidentität 2.3a nur auf Blatt 5 ausfüllen\",\"\")","v":""}]
[]
["b",null,null,null,null,null,null,null,null,null,null,null,null,null,null,null,null,null,null,{"$f":"ROUND((AC50),0)","v":0},null,null,null,{"$f":"ROUND((AD50),0)","v":0},null,null,null,null,null,null,null,null,{"$f":"IF(AND(AB10=TRUE,AB11=TRUE),\"bei Personenidentität 2.3b nur auf Blatt 2 ausfüllen\",\"\")","v":""}]
[]
["2.4","Umsatzerlöse aus selbständiger Arbeit (z.B. freiberufliche Tätigkeiten wie Referententätigkeit)",null,null,null,null,null,null,null,null,null,null,null,null,null,null,null,null,null,null,null,null,null,null,null,null,null,null,null,null,{"$f":"IF(AE50>100,\"Fehler!\",\"\")","v":""},{"$f":"IF(AF50>100,\"Fehler!\",\"\")","v":""}]
[null,null,null,null,null,null,null,null,null,null,null,null,null,null,null,null,null,null,null,{"$f":"ROUND((AC53),0)","v":0},null,null,null,{"$f":"ROUND((AD53),0)","v":0},null,null,null,null,null,null,null,null,{"$f":"IF(AND(AB10=TRUE,AB11=TRUE),\"bei Personenidentität 2.4 nur auf Blatt 2 ausfüllen\",\"\")","v":""}]
[]
[null,"Summe der Nr. 2 (= Summe 2)",null,null,null,null,null,null,null,null,null,null,null,null,null,null,null,null,null,{"$f":"IF(ISERROR(T41+T44+T50+T48+T53),0,(T41+T44+T50+T48+T53))","v":0},null,null,null,{"$f":"IF(ISERROR(X41+X44+X50+X48+X53),0,(X41+X44+X50+X48+X53))","v":0},null,null,null,null,{"$f":"IF(ISERROR(AC41+AC44+AC50+AC48+AC53),0,(AC41+AC44+AC50+AC48+AC53))","v":0},{"$f":"IF(ISERROR(AD41+AD44+AD50+AD48+AD53),0,(AD41+AD44+AD50+AD48+AD53))","v":0}]
[]
["Hinweise:"]
["1","Diese Anlage ist dann nicht auszufüllen."]
["2","Bei Nr. 1.2 darf nur eine Eintragung erfolgen, wenn diese Umsatzerlöse in die einkommenssteuerliche Einkunftsermittlung aus Land- und Forstwirtschaft des antragstellenden Unternehmens eingehen. Ansonsten sind diese Erlöse bei Nr. 2.2 zu erfassen."]
["·","Bei Gesellschaften (auch in Kooperationen) ist die Anlage für jeden Gesellschafter einzeln erforderlich. Auch für Gesellschafter deren Kapitalanteil kleiner als 5% ist, ist die Anlage erforderlich."]
["·","Bei Kooperationen sind alle Umsatzerlösen der beteiligten Kooperationspartner zu ermitteln."]
["·","Maßgeblich sind die im Durchschnitt der Berichtsjahre erzielten Umsatzerlöse. Es sind immer die kompletten Umsatzerlöse aus den Buchabschlüssen zu erfassen."]
[]
["·","Als Anlagen sind die der Berechnung zugrundeliegenden Jahresabschlüsse und die entsprechenden Gesellschaftsverträge/Kooperationsvereinbarungen vorzulegen."]
[]
[]
["Mir / uns ist bekannt, dass das ausgefüllte Formblatt als Nachweis zur Erfüllung der Zuwendungsberechtigung beim Direktor der Landwirtschaftskammer NRW als Landesbeauftragter - EU-Zahlstelle - vorgelegt wird."]
[]
[]
[]
[]
[null,{"$f":"'Blatt 1'!B72","v":0}]
[null,"Ort, Datum",null,null,null,null,null,null,null,null,null,null,null,null,null,null,null,"Name Buchstelle, Stempel, Unterschrift Bearbeiter / -in"]

{"sheet":"Blatt 6","index":5,"n_rows":73,"n_cols":33,"rows_kept":73,"cut":false,"hidden":false,"merged":[[71,1,71,6],[61,1,62,29],[63,1,64,29],[66,0,67,29],[54,1,54,16],[54,17,54,18],[54,19,54,22],[54,23,54,26],[17,28,17,29],[18,28,18,29],[57,1,57,29],[58,1,58,29],[59,1,59,29],[60,1,60,29],[50,19,50,22],[50,23,50,26],[51,1,52,18],[52,19,52,22],[52,23,52,26],[53,19,53,22],[53,23,53,26],[44,19,44,22],[44,23,44,26],[45,1,46,18],[45,19,45,22],[45,23,45,25],[49,1,49,17],[49,19,49,22],[38,1,39,18],[38,19,38,22],[38,23,38,26],[40,1,40,17],[40,19,40,22],[40,23,40,26],[49,23,49,26],[47,1,47,17],[47,19,47,22],[41,19,41,22],[41,23,41,26],[42,1,43,18],[42,19,42,22],[42,23,42,26],[43,19,43,22],[43,23,43,26],[47,23,47,26],[48,19,48,22],[48,23,48,26],[32,19,32,22],[32,23,32,26],[33,1,33,16],[33,17,33,18],[33,19,33,22],[33,23,33,26],[34,19,34,22],[34,23,34,26],[35,1,37,18],[35,19,35,22],[35,23,35,26],[36,19,36,22],[36,23,36,26],[37,19,37,22],[37,23,37,26],[27,19,27,22],[27,23,27,26],[28,1,29,18],[29,19,29,22],[29,23,29,26],[30,19,30,22],[30,23,30,26],[31,1,31,18],[31,19,31,22],[31,23,31,26],[23,1,26,18],[23,19,23,22],[23,23,23,26],[24,19,24,22],[24,23,24,26],[25,19,25,22],[25,23,25,26],[26,19,26,22],[26,23,26,26],[0,0,0,2],[3,0,3,26],[6,2,6,26],[9,11,9,14],[9,15,9,16],[9,17,9,26],[10,17,10,26],[12,6,12,26],[15,8,15,9],[17,0,20,18],[17,19,17,26],[18,19,18,26],[19,19,19,22],[19,23,19,26],[20,19,20,22],[20,23,20,26],[21,1,22,18],[21,19,21,22],[21,23,21,26],[22,19,22,22],[22,23,22,26]]}
["Anlage: ",null,null,"Berechnung der Umsatzerlöse aus bodengebundener Produktion"]
[null,null,null,"zum Antrag auf Gewährung von Zuwendungen zur Förderung der Diversifzierung"]
[]
[{"$f":"'Blatt 1'!A4","v":0}]
["Antragstellendes Unternehmen (Name, Vorname, ggf. Unternehmensbezeichnung)"]
[]
[null,null,"Der Unternehmer hat, außer der Bewirtschaftung des antragstellenden landwirtschaftlichen Unternehmens, keine weiteren Erlöse aus gewerblichen Nebenbetriebe, Gewerbebetrieb und/oder selbständiger Tätigkeit.1"]
[]
[]
[null,null,null,null,null,null,null,null,null,null,null,null,null,null,null,null,null,"Unternehmernummer Antragsteller",null,null,null,null,null,null,null,null,null,false]
[null,null,null,null,null,null,null,null,null,null,null,null,null,null,null,null,null,{"$f":"'Blatt 1'!R11","v":0},null,null,null,null,null,null,null,null,null,false]
[]
[null,null,null,null,null,null,{"$f":"IF(AND('Blatt 3'!AB10,'Blatt 3'!AB11,AB10=TRUE,AB11=TRUE),'Blatt 3'!G13,\"\")","v":""}]
[null,null,null,null,null,null,"(Name, Vorname)"]
[]
[null,null,null,null,null,null,null,"mit ",null,null,"% Anteil am antragstellendes Unternehmen"]
[]
["Der genannte antragstellende Einzelunternehmer / Gesellschafter\nhat folgende Umsatzerlöse aus dem antragstellenden Unternehmen:",null,null,null,null,null,null,null,null,null,null,null,null,null,null,null,null,null,null,"Wirtschaftsjahr",null,null,null,null,null,null,null,null,"Wirtschaftsjahr (100%)"]
[null,null,null,null,null,null,null,null,null,null,null,null,null,null,null,null,null,null,null,"EUR",null,null,null,null,null,null,null,null,{"$f":"T19","v":"EUR"},null,{"$f":"IF(AND(AB10=TRUE,AB11=TRUE),\"bei Personenidentität Blatt 6 und Blatt 3 ausfüllen\",\"\")","v":""}]
[null,null,null,null,null,null,null,null,null,null,null,null,null,null,null,null,null,null,null,"Vorjahr",null,null,null,"akt. Jahr",null,null,null,null,{"$f":"T20","v":"Vorjahr"},{"$f":"X20","v":"akt. Jahr"}]
[null,null,null,null,null,null,null,null,null,null,null,null,null,null,null,null,null,null,null,{"$f":"AC21","v":0},null,null,null,{"$f":"AD21","v":0},null,null,null,null,{"$f":"'Blatt 4'!AC21","v":0},{"$f":"'Blatt 4'!AD21","v":0}]
["1.","Umsatzerlöse im Rahmen der einkommensteuerrechtlichen Einkunftsermittlung aus Land- und Forstwirtschaft"]
[]
["1.1","Umsatzerlöse aus pflanzlichen oder tierischen Erzeugnissen, die durch Bodenbewirtschaftung oder durch mit Bodenbewirtschaftung verbundene Tierhaltung gemäß Bewertungsgesetz gewonnen werden inkl. Bestandsveränderung"]
[]
[]
[null,null,null,null,null,null,null,null,null,null,null,null,null,null,null,null,null,null,null,null,null,null,null,null,null,null,null,null,{"$f":"IF(AND('Blatt 3'!$AB$10=TRUE,'Blatt 3'!$AB$11=TRUE),'Blatt 3'!AC27,0)","v":0},{"$f":"IF(AND('Blatt 3'!$AB$10=TRUE,'Blatt 3'!$AB$11=TRUE),'Blatt 3'!AD27,0)","v":0}]
[]
["1.2","Umsatzerlöse aus Direktvermarktung land- und forstwirtschaftlicher Erzeugnisse, sonstigen Bereichen (Urlaub auf dem Bauerhof, außerbetrieblicher Maschineneinsatz)2"]
[null,null,null,null,null,null,null,null,null,null,null,null,null,null,null,null,null,null,null,null,null,null,null,null,null,null,null,null,{"$f":"IF(AND('Blatt 3'!$AB$10=TRUE,'Blatt 3'!$AB$11=TRUE),'Blatt 3'!AC30,0)","v":0},{"$f":"IF(AND('Blatt 3'!$AB$10=TRUE,'Blatt 3'!$AB$11=TRUE),'Blatt 3'!AD30,0)","v":0}]
[]
["1.3","Zulagen und Zuschüsse (BMELV-Code 2449, etc.):",null,null,null,null,null,null,null,null,null,null,null,null,null,null,null,null,null,null,null,null,null,null,null,null,null,null,{"$f":"IF(AND('Blatt 3'!$AB$10=TRUE,'Blatt 3'!$AB$11=TRUE),'Blatt 3'!AC32,0)","v":0},{"$f":"IF(AND('Blatt 3'!$AB$10=TRUE,'Blatt 3'!$AB$11=TRUE),'Blatt 3'!AD32,0)","v":0}]
[]
[null,"Summe der Nr. 1 (= Summe 1)",null,null,null,null,null,null,null,null,null,null,null,null,null,null,null,null,null,{"$f":"IF(ISERROR(T27+T30+T32),0,(T27+T30+T32))","v":0},null,null,{"$f":"SUM(W27+#REF!+W32)","v":{"$error":"#REF!"}},{"$f":"IF(ISERROR(X27+X30+X32),0,(X27+X30+X32))","v":0},null,null,{"$f":"SUM(AA27+#REF!+AA32)","v":{"$error":"#REF!"}},null,{"$f":"IF(ISERROR(AC27+AC30+AC32),0,(AC27+AC30+AC32))","v":0},{"$f":"IF(ISERROR(AD27+AD30+AD32),0,(AD27+AD30+AD32))","v":0}]
[]
["2.","Umsatzerlöse im Rahmen der einkommensteuerrechtlichen Einkunfts-ermittlung aus Gewerbebetrieb und aus Land- und Forstwirtschaft ohne eigene Bodenbewirtschaftung"]
[]
[]
["2.1","gewerbliche Umsatzerlöse im landwirtschaftl. Betrieb aus Handel, Dienst-leistungen, Nebenbetriebe (z.B. Hofladen) (BMELV-Code 2337, etc.):"]
[]
[null,{"$f":"IF(AND('Blatt 3'!$AB$10=TRUE,'Blatt 3'!$AB$11=TRUE),'Blatt 3'!B41,\"\")","v":""},null,null,null,null,null,null,null,null,null,null,null,null,null,null,null,null,null,null,null,null,null,null,null,null,null,null,{"$f":"IF(AND('Blatt 3'!$AB$10=TRUE,'Blatt 3'!$AB$11=TRUE),'Blatt 3'!AC41,0)","v":0},{"$f":"IF(AND('Blatt 3'!$AB$10=TRUE,'Blatt 3'!$AB$11=TRUE),'Blatt 3'!AD41,0)","v":0}]
[]
["2.2","Pacht- und Mieterträge des antragstellenden Unternehmens (BMELV-Code 2325 + 2326, etc.)"]
[null,null,null,null,null,null,null,null,null,null,null,null,null,null,null,null,null,null,null,null,null,null,null,null,null,null,null,null,{"$f":"IF(AND('Blatt 3'!$AB$10=TRUE,'Blatt 3'!$AB$11=TRUE),'Blatt 3'!AC44,0)","v":0},{"$f":"IF(AND('Blatt 3'!$AB$10=TRUE,'Blatt 3'!$AB$11=TRUE),'Blatt 3'!AD44,0)","v":0},{"$f":"IF(AE48>100,\"Fehler!\",\"\")","v":""},{"$f":"IF(AF48>100,\"Fehler!\",\"\")","v":""}]
[]
["2.3","Umsatzerlöse aus folgenden beteiligten Gewerbebetrieb (z.B. Bauernhofcafe, Ferienwohnungen, Pferdepension, Photovoltaik, Biogas, Maschineneinsatz):",null,null,null,null,null,null,null,null,null,null,null,null,null,null,null,null,null,null,null,null,null,null,null,null,null,null,null,null,"Anteil der Beteiligung in %"]
[null,null,null,null,null,null,null,null,null,null,null,null,null,null,null,null,null,null,null,null,null,null,null,null,null,null,null,null,null,null,{"$f":"T20","v":"Vorjahr"},{"$f":"X20","v":"akt. Jahr"}]
["a",null,null,null,null,null,null,null,null,null,null,null,null,null,null,null,null,null,null,{"$f":"ROUND((AC48*AE48/100),0)","v":0},null,null,null,{"$f":"ROUND((AD48*AF48/100),0)","v":0},null,null,null,null,null,null,null,null,{"$f":"IF(AND(AB10=TRUE,AB11=TRUE),\"bei Personenidentität 2.3a nur auf Blatt 6 ausfüllen\",\"\")","v":""}]
[]
["b",null,null,null,null,null,null,null,null,null,null,null,null,null,null,null,null,null,null,{"$f":"ROUND((AC50),0)","v":0},null,null,null,{"$f":"ROUND((AD50),0)","v":0},null,null,null,null,null,null,null,null,{"$f":"IF(AND(AB10=TRUE,AB11=TRUE),\"bei Personenidentität 2.3b nur auf Blatt 3 ausfüllen\",\"\")","v":""}]
[]
["2.4","Umsatzerlöse aus selbständiger Arbeit (z.B. freiberufliche Tätigkeiten wie Referententätigkeit)",null,null,null,null,null,null,null,null,null,null,null,null,null,null,null,null,null,null,null,null,null,null,null,null,null,null,null,null,{"$f":"IF(AE50>100,\"Fehler!\",\"\")","v":""},{"$f":"IF(AF50>100,\"Fehler!\",\"\")","v":""}]
[null,null,null,null,null,null,null,null,null,null,null,null,null,null,null,null,null,null,null,{"$f":"ROUND((AC53),0)","v":0},null,null,null,{"$f":"ROUND((AD53),0)","v":0},null,null,null,null,null,null,null,null,{"$f":"IF(AND(AB10=TRUE,AB11=TRUE),\"bei Personenidentität 2.4 nur auf Blatt 3 ausfüllen\",\"\")","v":""}]
[]
[null,"Summe der Nr. 2 (= Summe 2)",null,null,null,null,null,null,null,null,null,null,null,null,null,null,null,null,null,{"$f":"IF(ISERROR(T41+T44+T50+T48+T53),0,(T41+T44+T50+T48+T53))","v":0},null,null,null,{"$f":"IF(ISERROR(X41+X44+X50+X48+X53),0,(X41+X44+X50+X48+X53))","v":0},null,null,null,null,{"$f":"IF(ISERROR(AC41+AC44+AC50+AC48+AC53),0,(AC41+AC44+AC50+AC48+AC53))","v":0},{"$f":"IF(ISERROR(AD41+AD44+AD50+AD48+AD53),0,(AD41+AD44+AD50+AD48+AD53))","v":0}]
[]
["Hinweise:"]
["1","Diese Anlage ist dann nicht auszufüllen."]
["2","Bei Nr. 1.2 darf nur eine Eintragung erfolgen, wenn diese Umsatzerlöse in die einkommenssteuerliche Einkunftsermittlung aus Land- und Forstwirtschaft des antragstellenden Unternehmens eingehen. Ansonsten sind diese Erlöse bei Nr. 2.2 zu erfassen."]
["·","Bei Gesellschaften (auch in Kooperationen) ist die Anlage für jeden Gesellschafter einzeln erforderlich. Auch für Gesellschafter deren Kapitalanteil kleiner als 5% ist, ist die Anlage erforderlich."]
["·","Bei Kooperationen sind alle Umsatzerlösen der beteiligten Kooperationspartner zu ermitteln."]
["·","Maßgeblich sind die im Durchschnitt der Berichtsjahre erzielten Umsatzerlöse. Es sind immer die kompletten Umsatzerlöse aus den Buchabschlüssen zu erfassen."]
[]
["·","Als Anlagen sind die der Berechnung zugrundeliegenden Jahresabschlüsse und die entsprechenden Gesellschaftsverträge/Kooperationsvereinbarungen vorzulegen."]
[]
[]
["Mir / uns ist bekannt, dass das ausgefüllte Formblatt als Nachweis zur Erfüllung der Zuwendungsberechtigung beim Direktor der Landwirtschaftskammer NRW als Landesbeauftragter - EU-Zahlstelle - vorgelegt wird."]
[]
[]
[]
[]
[null,{"$f":"'Blatt 1'!B72","v":0}]
[null,"Ort, Datum",null,null,null,null,null,null,null,null,null,null,null,null,null,null,null,"Name Buchstelle, Stempel, Unterschrift Bearbeiter / -in"]

{"sheet":"Zusammenfassung","index":6,"n_rows":72,"n_cols":36,"rows_kept":72,"cut":false,"hidden":false,"merged":[[70,1,70,6],[20,22,20,25],[13,22,13,25],[47,26,47,28],[37,26,37,28],[61,1,62,28],[50,1,50,16],[50,18,50,21],[29,26,29,28],[50,22,50,25],[32,18,32,21],[30,26,30,28],[15,22,15,25],[24,18,24,21],[24,22,24,25],[28,26,28,28],[0,0,0,2],[32,1,32,16],[3,0,3,28],[23,26,23,28],[22,18,22,21],[32,26,32,28],[32,22,32,25],[30,1,30,16],[14,18,14,21],[24,1,24,16],[22,22,22,25],[15,18,15,21],[22,26,22,28],[28,22,28,25],[6,11,6,14],[11,18,11,25],[64,0,65,28],[30,22,30,25],[30,18,30,21],[57,1,57,28],[59,1,60,28],[54,26,54,28],[52,26,52,28],[54,0,54,21],[54,22,54,25],[40,26,40,28],[41,18,41,21],[39,22,39,25],[38,26,38,28],[42,26,42,28],[43,26,43,28],[43,18,43,21],[43,22,43,25],[41,1,41,16],[58,1,58,28],[50,26,50,28],[52,18,52,21],[52,22,52,25],[45,26,45,28],[47,1,47,16],[47,22,47,25],[47,18,47,21],[45,1,45,16],[44,26,44,28],[52,1,52,16],[45,18,45,21],[45,22,45,25],[43,1,43,16],[25,26,25,28],[26,1,26,16],[26,18,26,21],[26,22,26,25],[39,1,39,16],[39,18,39,21],[37,22,37,25],[41,26,41,28],[39,26,39,28],[37,1,37,16],[37,18,37,21],[41,22,41,25],[9,1,9,2],[34,1,36,16],[26,26,26,28],[20,1,20,16],[20,18,20,21],[21,26,21,28],[20,26,20,28],[13,18,13,21],[16,1,18,16],[11,0,15,16],[14,22,14,25],[28,18,28,21],[27,26,27,28],[28,1,28,16],[24,26,24,28],[22,1,22,16],[6,15,6,16],[6,18,6,28],[7,18,7,28],[12,18,12,25],[11,26,15,28],[9,20,9,22]]}
["Anlage: ",null,null,"Zusammenfassende Berechnung der Umsatzerlöse aus bodengebundener Produktion"]
[null,null,null,"zum Antrag auf Gewährung von Zuwendungen zur Förderung der Diversifzierung"]
[]
[{"$f":"'Blatt 1'!A4","v":0}]
["Antragstellendes Unternehmen (Name, Vorname, ggf. Unternehmensbezeichnung)"]
[]
[null,null,null,null,null,null,null,null,null,null,null,null,null,null,null,null,null,null,"Unternehmernummer Antragsteller"]
[null,null,null,null,null,null,null,null,null,null,null,null,null,null,null,null,null,null,{"$f":"'Blatt 1'!R11","v":0}]
[]
[null,{"$f":"'Blatt 1'!I16+'Blatt 2'!I16+'Blatt 3'!I16+'Blatt 4'!I16+'Blatt 5'!I16+'Blatt 6'!I16","v":0},null,"% Summe angebenener Anteile am antragstellendes Unternehmen",null,null,null,null,null,null,null,null,null,null,null,null,null,null,null,null,null,null,null,null,null,{"$f":"IF(AND(B10>0,B10>100),\"Fehler!\",\"\")","v":""},null,null,null,{"$f":"IF(AND(B10>100,AI10>0),\"Anteil landwirtschaftlicher Kooperationspartner ist\",\"\")","v":""},null,null,null,null,{"$f":"IF(AND(B10>100,'Blatt 1'!AB10=TRUE),'Blatt 1'!I16+'Blatt 2'!I16+'Blatt 3'!I16,\"\")","v":""},{"$f":"IF(AND(B10>100,AI10>0),\"%\",\"\")","v":""}]
[]
["Der genannte antragstellende Einzelunternehmer / Gesellschafter\nhat folgende Umsatzerlöse:",null,null,null,null,null,null,null,null,null,null,null,null,null,null,null,null,null,"Wirtschaftsjahr",null,null,null,null,null,null,null,"Æ der Berichtsjahre",null,null,{"$f":"IF(AND(B10>100,AI12>0),\"Anteil gewerblicher Kooperationspartner ist \",\"\")","v":""},null,null,null,null,{"$f":"IF(AND(B10>100,'Blatt 4'!AB10=TRUE),'Blatt 4'!I16+'Blatt 5'!I16+'Blatt 6'!I16,\"\")","v":""},{"$f":"IF(AND(B10>100,AI12>0),\"%\",\"\")","v":""}]
[null,null,null,null,null,null,null,null,null,null,null,null,null,null,null,null,null,"Blatt ","EUR"]
[null,null,null,null,null,null,null,null,null,null,null,null,null,null,null,null,null,null,"Vorjahr",null,null,null,"akt. Jahr"]
[null,null,null,null,null,null,null,null,null,null,null,null,null,null,null,null,null,null,{"$f":"'Blatt 1'!T21","v":0},null,null,null,{"$f":"'Blatt 1'!X21","v":0}]
[null,null,null,null,null,null,null,null,null,null,null,null,null,null,null,null,null,null,{"$f":"'Blatt 4'!T21","v":0},null,null,null,{"$f":"'Blatt 4'!X21","v":0},null,null,null,null,null,null,"Vorjahr","akt. Jahr"]
["1.","Summe Umsatzerlöse im Rahmen der einkommensteuerrecht-lichen Einkunftsermittlung aus Land- und Forstwirtschaft für (Name, Vorname)",null,null,null,null,null,null,null,null,null,null,null,null,null,null,null,null,null,null,null,null,null,null,null,null,null,null,null,{"$f":"'Blatt 1'!AE21+'Blatt 2'!AE21+'Blatt 3'!AE21","v":0},{"$f":"'Blatt 1'!AF21+'Blatt 2'!AF21+'Blatt 3'!AF21","v":0},"% Summe angebenener Anteile am landwirtschaftlichen Unternehmen"]
[null,null,null,null,null,null,null,null,null,null,null,null,null,null,null,null,null,null,null,null,null,null,null,null,null,null,null,null,null,{"$f":"IF(AND(AD17>0,AD17>100),\"Fehler!\",\"\")","v":""},{"$f":"IF(AND(AE17>0,AE17>100),\"Fehler!\",\"\")","v":""}]
[]
[]
[null,{"$f":"'Blatt 1'!G13","v":0},null,null,null,null,null,null,null,null,null,null,null,null,null,null,null,1,{"$f":"'Blatt 1'!T34","v":0},null,null,null,{"$f":"'Blatt 1'!X34","v":0}]
[]
[null,{"$f":"'Blatt 2'!G13","v":0},null,null,null,null,null,null,null,null,null,null,null,null,null,null,null,2,{"$f":"'Blatt 2'!T34","v":0},null,null,null,{"$f":"'Blatt 2'!X34","v":0}]
[]
[null,{"$f":"'Blatt 3'!G13","v":0},null,null,null,null,null,null,null,null,null,null,null,null,null,null,null,3,{"$f":"'Blatt 3'!T34","v":0},null,null,null,{"$f":"'Blatt 3'!X34","v":0}]
[]
[null,{"$f":"'Blatt 4'!G13","v":""},null,null,null,null,null,null,null,null,null,null,null,null,null,null,null,4,{"$f":"'Blatt 4'!T34","v":0},null,null,null,{"$f":"'Blatt 4'!X34","v":0}]
[]
[null,{"$f":"'Blatt 5'!G13","v":""},null,null,null,null,null,null,null,null,null,null,null,null,null,null,null,5,{"$f":"'Blatt 5'!T34","v":0},null,null,null,{"$f":"'Blatt 5'!X34","v":0}]
[]
[null,{"$f":"'Blatt 6'!G13","v":""},null,null,null,null,null,null,null,null,null,null,null,null,null,null,null,6,{"$f":"'Blatt 6'!T34","v":0},null,null,null,{"$f":"'Blatt 6'!X34","v":0}]
[]
[null,"Summe der Nr. 1 (= Summe 1)",null,null,null,null,null,null,null,null,null,null,null,null,null,null,null,null,{"$f":"SUM(S21:V32)","v":0},null,null,null,{"$f":"SUM(W21:Z32)","v":0},null,null,null,{"$f":"AVERAGE(S33:Z33)","v":0}]
[]
["2.","Umsatzerlöse im Rahmen der einkommensteuerrechtlichen Einkunftsermittlung aus Gewerbebetrieb und aus Land- und Forstwirtschaft ohne eigene Bodenbewirtschaftung für \n(Name, Vorname)"]
[]
[]
[null,{"$f":"'Blatt 1'!G13","v":0},null,null,null,null,null,null,null,null,null,null,null,null,null,null,null,1,{"$f":"'Blatt 1'!T55","v":0},null,null,null,{"$f":"'Blatt 1'!X55","v":0}]
[]
[null,{"$f":"'Blatt 2'!G13","v":0},null,null,null,null,null,null,null,null,null,null,null,null,null,null,null,2,{"$f":"'Blatt 2'!T55","v":0},null,null,null,{"$f":"'Blatt 2'!X55","v":0}]
[]
[null,{"$f":"'Blatt 3'!G13","v":0},null,null,null,null,null,null,null,null,null,null,null,null,null,null,null,3,{"$f":"'Blatt 3'!T55","v":0},null,null,null,{"$f":"'Blatt 3'!X55","v":0}]
[]
[null,{"$f":"'Blatt 4'!G13","v":""},null,null,null,null,null,null,null,null,null,null,null,null,null,null,null,4,{"$f":"'Blatt 4'!T55","v":0},null,null,null,{"$f":"'Blatt 4'!X55","v":0}]
[]
[null,{"$f":"'Blatt 5'!G13","v":""},null,null,null,null,null,null,null,null,null,null,null,null,null,null,null,5,{"$f":"'Blatt 5'!T55","v":0},null,null,null,{"$f":"'Blatt 5'!X55","v":0}]
[]
[null,{"$f":"'Blatt 6'!G13","v":""},null,null,null,null,null,null,null,null,null,null,null,null,null,null,null,6,{"$f":"'Blatt 6'!T55","v":0},null,null,null,{"$f":"'Blatt 6'!X55","v":0}]
[]
[]
[null,"Summe der Nr. 2 (= Summe 2)",null,null,null,null,null,null,null,null,null,null,null,null,null,null,null,null,{"$f":"SUM(S38:V50)","v":0},null,null,null,{"$f":"SUM(W38:Z50)","v":0},null,null,null,{"$f":"AVERAGE(S51:Z51)","v":0},null,null,{"$f":"'Blatt 4'!$AE$48+'Blatt 5'!AE48+'Blatt 6'!AE48","v":0},{"$f":"'Blatt 4'!$AF$48+'Blatt 5'!AF48+'Blatt 6'!AF48","v":0},"% Summe angebenener Anteile am bestehenden gewerblichen Unternehmen, das der Kooperationspartner ist"]
[]
[null,"Gesamtsumme (= Summe 1 und Summe 2)",null,null,null,null,null,null,null,null,null,null,null,null,null,null,null,null,{"$f":"S33+S51","v":0},null,null,null,{"$f":"W33+W51","v":0},null,null,null,{"$f":"AA33+AA51","v":0},null,null,{"$f":"IF(AND(AD51>0,AD51<100),\"Fehler!\",\"\")","v":""},{"$f":"IF(AND(AE51>0,AE51<100),\"Fehler!\",\"\")","v":""}]
[]
["Der relative Anteil (Prozent) der Summe 1 an der vorgenannten Gesamtsumme beträgt:",null,null,null,null,null,null,null,null,null,null,null,null,null,null,null,null,null,null,null,null,null,{"$f":"IF(AA55>25%,\"LUF > 25%\",\"LUF < 25%\")","v":"LUF > 25%"},null,null,null,{"$f":"IF(AA53>0,SUM(AA33/AA53),\"\")","v":""}]
[]
["Hinweise:"]
["·","Bei Gesellschaften (auch in Kooperationen) ist die Anlage für jeden Gesellschafter einzeln erforderlich. Auch für Gesellschafter deren Kapitalanteil kleiner als 5% ist, ist die Anlage erforderlich."]
["·","Bei Kooperationen sind alle Umsatzerlösen der beteiligten Kooperationspartner zu ermitteln."]
["·","Maßgeblich sind die im Durchschnitt der Berichtsjahre erzielten Umsatzerlöse. Es sind immer die kompletten Umsatzerlöse aus den Buchabschlüssen zu erfassen."]
[]
["·","Als Anlagen sind die der Berechnung zugrundeliegenden Jahresabschlüsse und die entsprechenden Gesellschaftsverträge/Kooperationsvereinbarungen vorzulegen."]
[]
[]
["Mir / uns ist bekannt, dass das ausgefüllte Formblatt als Nachweis zur Erfüllung der Zuwendungsberechtigung beim Direktor der Landwirtschaftskammer NRW als Landesbeauftragter - EU-Zahlstelle - vorgelegt wird."]
[]
[]
[]
[]
[]
[null,{"$f":"'Blatt 1'!B72","v":0}]
[null,"Ort, Datum",null,null,null,null,null,null,null,null,null,null,null,null,null,null,null,"Name Buchstelle, Stempel, Unterschrift Bearbeiter / -in"]

{"sheet":"Tabelle2","index":7,"n_rows":113,"n_cols":13,"rows_kept":113,"cut":false,"hidden":true,"merged":[[109,8,110,8],[109,10,110,10],[102,1,102,2],[107,1,107,2],[109,4,110,4],[109,6,110,6],[90,8,91,8],[90,10,91,10],[24,1,24,2],[25,1,25,2],[27,1,27,2],[29,1,29,2],[31,4,32,4],[31,6,32,6],[31,8,32,8],[31,10,32,10],[83,1,83,2],[84,1,84,2],[86,1,86,2],[88,1,88,2],[90,4,91,4],[90,6,91,6],[70,4,71,4],[70,6,71,6],[70,8,71,8],[70,10,71,10],[68,2,68,3],[63,1,63,2],[42,1,42,2],[43,1,43,2],[45,1,45,2],[47,1,47,2],[11,1,11,2],[6,1,6,2],[13,8,14,8],[49,8,50,8],[49,10,50,10],[49,4,50,4],[49,6,50,6],[13,10,14,10],[13,4,14,4],[13,6,14,6],[7,1,7,2],[9,1,9,2]]}
["Kooperation GbR + GbR Personenidentität LW + GW"]
["a","Gesellschafter",null,"Gesellschafter",null,"Kooperation",null,null,"Personenidentität"]
["b","Gesellschafter",null,"Gesellschafter",null,"Kooperation",null,null,"Personenidentität"]
[null,null,null,null,"LW",null,50,"%","GW",null,50,"%"]
[null,"a","b",null,"a",null,"b",null,"a",null,"b"]
[null,null,null,null,80,"%",20,"%",60,"%",40,"%"]
[null,"Betrag gesamt",null,null,{"$f":"E6*$G$4/100","v":40},"%",{"$f":"G6*$G$4/100","v":10},"%",{"$f":"I6*$K$4/100","v":30},"%",{"$f":"K6*$K$4/100","v":20},"%"]
["LuF",100000,null,null,{"$f":"$B$8*E7/100","v":40000},null,{"$f":"$B$8*G7/100","v":10000},null,{"$f":"E8","v":40000},null,{"$f":"G8","v":10000},null,"immer 100% bei LW entsprechend richtigen Beteiligungsanteilen"]
[]
["Gewerbe in LuF",10000,null,null,{"$f":"$B$10*E7/100","v":4000},null,{"$f":"$B$10*G7/100","v":1000},null,{"$f":"E10","v":4000},null,{"$f":"G10","v":1000},null,"immer 100% bei LW entsprechend richtigen Beteiligungsanteilen"]
[]
["Bestand Gewerbe Koop.",25000,null,null,0,null,0,null,{"$f":"B12*I7/100*2","v":15000},null,{"$f":"B12*K7/100*2","v":10000},null,"immer 100% bei GW entsprechend richtigen Beteiligungsanteilen"]
[]
["weiteres Gewerbe",30000,4000,null,0,null,0,null,{"$f":"B14*B15/100","v":15000},null,{"$f":"C14*C15/100","v":1000},null,"pro Person mit zusätzlichen Feld Anteil Beteiligung"]
["Anteil Beteiligung in %",50,25]
[]
["selbstständige Arbeit",1500,2000,null,{"$f":"B17","v":1500},null,{"$f":"C17","v":2000},null,0,null,0,null,"pro Person 100%"]
[]
["Kooperation GbR + Einzelunternehmen Personenidentität LW"]
["a","Gesellschafter",null,"Einzelunternehmer",null,"Kooperation",null,null,"Personenidentität"]
["b","Gesellschafter",null,null,null,"Kooperation",null,null,"keine Personenidentität"]
[null,null,null,null,"LW",null,50,"%","GW",null,50,"%"]
[null,"a","b",null,"a",null,"b",null,"a"]
[null,null,null,null,80,"%",20,"%",100,"%",null,"%"]
[null,"Betrag gesamt",null,null,{"$f":"E24*$G$4/100","v":40},"%",{"$f":"G24*$G$4/100","v":10},"%",{"$f":"I24*$K$4/100","v":50},"%",null,"%"]
["LuF",100000,null,null,{"$f":"$B$8*E25/100","v":40000},null,{"$f":"$B$8*G25/100*2","v":20000},null,{"$f":"E26","v":40000},null,null,null,"immer 100% bei LW entsprechend richtigen Beteiligungsanteilen"]
[]
["Gewerbe in LuF",10000,null,null,{"$f":"$B$10*E25/100","v":4000},null,{"$f":"$B$10*G25/100*2","v":2000},null,{"$f":"E28","v":4000},null,null,null,"immer 100% bei LW entsprechend richtigen Beteiligungsanteilen"]
[]
["Bestand Gewerbe Koop.",25000,null,null,0,null,0,null,{"$f":"B30*I25/100*2","v":25000},null,null,null,"immer 100% bei GW entsprechend richtigen Beteiligungsanteilen"]
[]
["weiteres Gewerbe",30000,4000,null,0,null,{"$f":"C32*C33/100","v":1000},null,{"$f":"B32*B33/100","v":15000},null,null,null,"pro Person mit zusätzlichen Feld Anteil Beteiligung"]
["Anteil Beteiligung in %",50,25]
[]
["selbstständige Arbeit",1500,2000,null,{"$f":"B35","v":1500},null,{"$f":"C35","v":2000},null,0,null,null,null,"pro Person 100%"]
[]
["Kooperation Einzelunternehmen + GbR Personenidentität LW"]
["a","Einzelunternehmer",null,"Gesellschafter",null,null,"Kooperation",null,"Personenidentität"]
["b",null,null,"Gesellschafter",null,null,"Kooperation",null,"keine Personenidentität"]
[null,null,null,null,"LW",null,50,"%","GW",null,50,"%"]
[null,"a","b",null,"a",null,null,null,"a",null,"b"]
[null,null,null,null,100,"%",null,null,60,"%",40,"%"]
[null,"Betrag gesamt",null,null,{"$f":"E42*$G$4/100","v":50},"%",null,null,{"$f":"I42*$K$4/100","v":30},"%",{"$f":"K42*$K$4/100","v":20},"%"]
["LuF",100000,null,null,{"$f":"$B$8*E43/100","v":50000},null,null,null,{"$f":"E44","v":50000},null,{"$f":"G44","v":0},null,"immer 100% bei LW entsprechend richtigen Beteiligungsanteilen"]
[]
["Gewerbe in LuF",10000,null,null,{"$f":"$B$10*E43/100","v":5000},null,null,null,{"$f":"E46","v":5000},null,{"$f":"G46","v":0},null,"immer 100% bei LW entsprechend richtigen Beteiligungsanteilen"]
[]
["Bestand Gewerbe Koop.",25000,null,null,0,null,null,null,{"$f":"B48*I43/100*2","v":15000},null,{"$f":"B48*K43/100*2","v":10000},null,"immer 100% bei GW entsprechend richtigen Beteiligungsanteilen"]
[]
["weiteres Gewerbe",30000,4000,null,0,null,null,null,{"$f":"B50*B51/100","v":15000},null,{"$f":"C50*C51/100","v":1000},null,"pro Person mit zusätzlichen Feld Anteil Beteiligung"]
["Anteil Beteiligung in %",50,25]
[]
["selbstständige Arbeit",1500,2000,null,{"$f":"B53","v":1500},null,null,null,0,null,{"$f":"C53","v":2000},null,"pro Person 100%"]
[]
[]
["Kooperation Einzelunternehmen + GbR keine Personenidentität"]
["a","Einzelunternehmer",null,null,null,null,"Kooperation",null,"keine Personenidentität"]
["b","-",null,"Gesellschafter",null,null,"Kooperation",null,"keine Personenidentität"]
["c","-",null,"Gesellschafter",null,null,"Kooperation",null,"keine Personenidentität"]
[]
[null,null,null,null,"LW",null,50,"%","GW",null,50,"%"]
[null,"a","b","c","a",null,null,null,"b",null,"c"]
[null,null,null,null,100,"%",null,null,80,"%",20,"%"]
[null,"Betrag gesamt",null,null,{"$f":"E63*$G$4/100","v":50},"%",null,null,{"$f":"I63*$K$4/100","v":40},"%",{"$f":"K63*$K$4/100","v":10},"%"]
["LuF",100000,null,null,{"$f":"$B$8*E64/100*2","v":100000},null,null,null,0,null,0,null,"immer 100% bei LW entsprechend richtigen Beteiligungsanteilen"]
[]
["Gewerbe in LuF",10000,null,null,{"$f":"$B$10*E64/100*2","v":10000},null,null,null,{"$f":"G67","v":0},null,0,null,"immer 100% bei LW entsprechend richtigen Beteiligungsanteilen"]
[]
["Bestand Gewerbe Koop.",null,25000,null,0,null,null,null,{"$f":"C69*I64/100*2","v":20000},null,{"$f":"C69*K64/100*2","v":5000},null,"immer 100% bei GW entsprechend richtigen Beteiligungsanteilen"]
[]
["weiteres Gewerbe",30000,4000,1200,0,null,null,null,{"$f":"C71*C72/100","v":1000},null,{"$f":"D71*100/100","v":1200},null,"pro Person mit zusätzlichen Feld Anteil Beteiligung"]
["Anteil Beteiligung in %",50,25,100]
[]
["selbstständige Arbeit",1500,2000,1400,{"$f":"B74","v":1500},null,null,null,{"$f":"C74","v":2000},null,{"$f":"D74","v":1400},null,"pro Person 100%"]
[]
[]
[]
["LW Gesellschaft"]
["a","Gesellschafter",null,"-",null,null,"keine Kooperation",null,"keine Personenidentität"]
["b","Gesellschafter",null,"-",null,null,"keine Kooperation",null,"keine Personenidentität"]
[null,null,null,null,"LW",null,100,"%","GW",null,0,"%"]
[null,"a","b",null,"a",null,"b",null,"a",null,"b"]
[null,null,null,null,80,"%",20,"%",null,"%",null,"%"]
[null,"Betrag gesamt",null,null,{"$f":"E83*$G$81/100","v":80},"%",{"$f":"G83*$G$81/100","v":20},"%",{"$f":"I83*$K$4/100","v":0},"%",{"$f":"K83*$K$4/100","v":0},"%"]
["LuF",100000,null,null,{"$f":"$B$8*E84/100","v":80000},null,{"$f":"$B$85*G84/100","v":20000},null,0,null,0,null,"immer 100% bei LW entsprechend richtigen Beteiligungsanteilen"]
[]
["Gewerbe in LuF",10000,null,null,{"$f":"$B$87*E84/100","v":8000},null,{"$f":"$B$87*G84/100","v":2000},null,0,null,0,null,"immer 100% bei LW entsprechend richtigen Beteiligungsanteilen"]
[]
["Bestand Gewerbe Koop.",null,null,null,0,null,0,null,{"$f":"B89*I84/100*2","v":0},null,{"$f":"B89*K84/100*2","v":0},null,"immer 100% bei GW entsprechend richtigen Beteiligungsanteilen"]
[]
["weiteres Gewerbe",30000,4000,null,{"$f":"B91*B92/100","v":15000},null,{"$f":"C91*C92/100","v":1000},null,null,null,null,null,"pro Person mit zusätzlichen Feld Anteil Beteiligung"]
["Anteil Beteiligung in %",50,25]
[]
["selbstständige Arbeit",1500,2000,null,{"$f":"B94","v":1500},null,{"$f":"C94","v":2000},null,0,null,0,null,"pro Person 100%"]
[]
[]
["LW Einzelunternehmen"]
["a","Gesellschafter",null,"-",null,null,"keine Kooperation",null,"keine Personenidentität"]
["b","Gesellschafter",null,"-",null,null,"keine Kooperation",null,"keine Personenidentität"]
[null,null,null,null,"LW",null,100,"%","GW",null,0,"%"]
[null,"a",null,null,"a",null,null,null,"a",null,"b"]
[null,null,null,null,100,"%",null,"%",null,"%",null,"%"]
[null,"Betrag gesamt",null,null,{"$f":"E102*$G$81/100","v":100},"%",{"$f":"G102*$G$81/100","v":0},"%",{"$f":"I102*$K$4/100","v":0},"%",{"$f":"K102*$K$4/100","v":0},"%"]
["LuF",100000,null,null,{"$f":"$B$8*E103/100","v":100000},null,{"$f":"$B$85*G103/100","v":0},null,0,null,0,null,"immer 100% bei LW entsprechend richtigen Beteiligungsanteilen"]
[]
["Gewerbe in LuF",10000,null,null,{"$f":"$B$87*E103/100","v":10000},null,{"$f":"$B$87*G103/100","v":0},null,0,null,0,null,"immer 100% bei LW entsprechend richtigen Beteiligungsanteilen"]
[]
["Bestand Gewerbe Koop.",null,null,null,0,null,0,null,{"$f":"B108*I103/100*2","v":0},null,{"$f":"B108*K103/100*2","v":0},null,"immer 100% bei GW entsprechend richtigen Beteiligungsanteilen"]
[]
["weiteres Gewerbe",30000,null,null,{"$f":"B110*B111/100","v":15000},null,{"$f":"C110*C111/100","v":0},null,null,null,null,null,"pro Person mit zusätzlichen Feld Anteil Beteiligung"]
["Anteil Beteiligung in %",50]
[]
["selbstständige Arbeit",1500,null,null,{"$f":"B113","v":1500},null,{"$f":"C113","v":0},null,0,null,0,null,"pro Person 100%"]